﻿Analysed Amount,Supplier,3CCN - Level 3 Cost Centre Name,5CCN - Level 5 Cost Centre Name,9CCN - Level 9 Cost Centre Name,9CCC - Level 9 Cost Centre Code,9AN - Level 9 Account Name,Date Paid,5AN - Level 5 Account Name,Transaction Reference,3CCN - Level 3 Cost Centre Name,Department 
8036040.43,Nottinghamshire County Council,Collection Fund,Precepting Authorities,Notts Cc Precept & Ndr Share,5930,Precept Paid,03/08/2021,Collection Fund Accounts,125889,Collection Fund,Finance
8036040.43,Nottinghamshire County Council,Collection Fund,Precepting Authorities,Notts Cc Precept & Ndr Share,5930,Precept Paid,08/09/2021,Collection Fund Accounts,125890,Collection Fund,Finance
1076162,Notts Police & Crime Commissioner,Collection Fund,Precepting Authorities,Notts Police Precept & Ndr,5932,Precept Paid,03/08/2021,Collection Fund Accounts,125909,Collection Fund,Finance
1076162,Notts Police & Crime Commissioner,Collection Fund,Precepting Authorities,Notts Police Precept & Ndr,5932,Precept Paid,08/09/2021,Collection Fund Accounts,125910,Collection Fund,Finance
962249.79,Willmott Dixon Construction Ltd,Capital Expenditure,Transformation & Innovation,Bingham Leisure Hub,0314,Contractors-Third Party,13/07/2021,Third Party Payments,129713,Capital Expenditure,Neighbourhoods
642508.59,Nottinghamshire County Council,Liabilities,Long Term Liabilities,Cotgrave Colliery - Educ,6737,Balance Sheet Exp In The Year,25/08/2021,Balance Sheet Exp In The Year,130179,Liabilities,Finance
573773.44,Willmott Dixon Construction Ltd,Capital Expenditure,Transformation & Innovation,Bingham Leisure Hub,0314,Contractors-Third Party,31/08/2021,Third Party Payments,131308,Capital Expenditure,Neighbourhoods
521420.71,Willmott Dixon Construction Ltd,Capital Expenditure,Transformation & Innovation,Bingham Leisure Hub,0314,Contractors-Third Party,20/09/2021,Third Party Payments,131792,Capital Expenditure,Neighbourhoods
393780.35,Notts Fire And Rescue Service,Collection Fund,Precepting Authorities,Notts Fire Precept & Ndr,5933,Precept Paid,03/08/2021,Collection Fund Accounts,125899,Collection Fund,Finance
393780.35,Notts Fire And Rescue Service,Collection Fund,Precepting Authorities,Notts Fire Precept & Ndr,5933,Precept Paid,08/09/2021,Collection Fund Accounts,125900,Collection Fund,Finance
236066.09,Limonta Smith Jv Ltd,Capital Expenditure,Communities,Gresham Pitches,0280,Contractors-Third Party,15/09/2021,Third Party Payments,131685,Capital Expenditure,Economic Growth
187551,Terberg Matec Uk Limited,Capital Expenditure,Neighbourhoods,Vehicle Replacement,0680,Vehicles Acquisition,15/09/2021,Supplies & Services,131199,Capital Expenditure,Neighbourhoods
187551,Terberg Matec Uk Limited,Capital Expenditure,Neighbourhoods,Vehicle Replacement,0680,Vehicles Acquisition,15/09/2021,Supplies & Services,131200,Capital Expenditure,Neighbourhoods
159118.5,Bingham Town Council (Precept),General Fund Summary,Cies,Parish Council Precepts,1990,Parish Precepts,22/09/2021,Transfers Expenditure,125919,General Fund Summary,Finance
157137,Ruddington Parish Council,General Fund Summary,Cies,Parish Council Precepts,1990,Parish Precepts,22/09/2021,Transfers Expenditure,125954,General Fund Summary,Finance
156843,East Leake Parish Council,General Fund Summary,Cies,Parish Council Precepts,1990,Parish Precepts,22/09/2021,Transfers Expenditure,125933,General Fund Summary,Finance
154399,Radcliffe On Trent Parish Council,General Fund Summary,Cies,Parish Council Precepts,1990,Parish Precepts,22/09/2021,Transfers Expenditure,125952,General Fund Summary,Finance
150870.5,Trent Valley Internal Drainage Board,Finance & Corporate Services,Financial Services,Internal Drainage Board Levies,1047,Other Services,12/07/2021,Supplies & Services,125433,Finance & Corporate Services,Finance
147928.46,Limonta Smith Jv Ltd,Capital Expenditure,Communities,Gresham Pitches,0280,Contractors-Third Party,17/08/2021,Third Party Payments,130744,Capital Expenditure,Economic Growth
147261.53,Streetwise Environmental Ltd           1,Neighbourhoods,Waste & Fleet Management,Streetwise Contract,8301,Contractors-Third Party,22/07/2021,Third Party Payments,129928,Neighbourhoods,Neighbourhoods
147261.53,Streetwise Environmental Ltd           1,Neighbourhoods,Waste & Fleet Management,Streetwise Contract,8301,Contractors-Third Party,19/08/2021,Third Party Payments,130888,Neighbourhoods,Neighbourhoods
147261.53,Streetwise Environmental Ltd           1,Neighbourhoods,Waste & Fleet Management,Streetwise Contract,8301,Contractors-Third Party,27/09/2021,Third Party Payments,131932,Neighbourhoods,Neighbourhoods
113962.32,Limonta Smith Jv Ltd,Capital Expenditure,Communities,Gresham Pitches,0280,Contractors-Third Party,15/07/2021,Third Party Payments,129677,Capital Expenditure,Economic Growth
104712.5,Cotgrave Town Council,General Fund Summary,Cies,Parish Council Precepts,1990,Parish Precepts,22/09/2021,Transfers Expenditure,125926,General Fund Summary,Finance
95067.5,Keyworth Parish Council,General Fund Summary,Cies,Parish Council Precepts,1990,Parish Precepts,22/09/2021,Transfers Expenditure,125943,General Fund Summary,Finance
75458.28,Via East Midlands Ltd,Capital Expenditure,Transformation & Innovation,The Crematorium,0684,Contractors-Third Party,31/08/2021,Third Party Payments,131006,Capital Expenditure,Neighbourhoods
60127.48,Insight Direct (Uk) Ltd,Finance & Corporate Services,Ict,It Rechargeable Costs,4722,Maintenance Contracts - S&S,10/08/2021,Supplies & Services,130224,Finance & Corporate Services,Corporate Services
52185,Bdo International Ltd,Finance & Corporate Services,Financial Services,Internal Audit,4708,Legal & Professional Services,13/07/2021,Supplies & Services,129331,Finance & Corporate Services,Finance
48254,Cropwell Bishop Parish Council,General Fund Summary,Cies,Parish Council Precepts,1990,Parish Precepts,22/09/2021,Transfers Expenditure,125928,General Fund Summary,Finance
40589.82,East Leake Parish Council,Liabilities,Long Term Liabilities,Mtg Hse Cl El David Wilson,6748,Balance Sheet Exp In The Year,19/08/2021,Balance Sheet Exp In The Year,130834,Liabilities,Finance
36859.62,Nottingham City Council,Neighbourhoods,Waste & Fleet Management,Fleet,8600,Diesel,13/07/2021,Transport Related Expenditure,129671,Neighbourhoods,Neighbourhoods
33323.85,Nottingham City Council,Neighbourhoods,Waste & Fleet Management,Fleet,8600,Diesel,08/09/2021,Transport Related Expenditure,131517,Neighbourhoods,Neighbourhoods
32912,Tollerton Parish Council,General Fund Summary,Cies,Parish Council Precepts,1990,Parish Precepts,22/09/2021,Transfers Expenditure,125961,General Fund Summary,Finance
29386.67,Nottinghamshire County Council,Neighbourhoods,Leisure Contracts & Car Parks,East Leake Leisure Centre,1700,Olas - Notts County Council,13/07/2021,Third Party Payments,129391,Neighbourhoods,Neighbourhoods
29282.93,Nottingham City Council,Neighbourhoods,Waste & Fleet Management,Fleet,8600,Diesel,29/09/2021,Transport Related Expenditure,132245,Neighbourhoods,Neighbourhoods
29112.76,Thomas Bow Ltd,Capital Expenditure,Transformation & Innovation,Cotgrave Phase 2,0387,Legal & Professional Services,28/07/2021,Supplies & Services,130028,Capital Expenditure,Economic Growth
25820,Macfloor Ltd,Capital Expenditure,Communities,Gresham Pavilion,0347,Contractors-Third Party,24/08/2021,Third Party Payments,131122,Capital Expenditure,Neighbourhoods
25386.04,Keyworth Sports Association,Liabilities,Long Term Liabilities,Platt Ln Keyworth 18/02412/Ful,6772,Balance Sheet Exp In The Year,15/07/2021,Balance Sheet Exp In The Year,129565,Liabilities,Finance
21764.25,Nottinghamshire County Council,Liabilities,Long Term Liabilities,Stanford Hall - Transport,6338,Balance Sheet Exp In The Year,17/08/2021,Balance Sheet Exp In The Year,130182,Liabilities,Finance
21072,East Bridgford Parish Council,General Fund Summary,Cies,Parish Council Precepts,1990,Parish Precepts,22/09/2021,Transfers Expenditure,125931,General Fund Summary,Finance
21017,P J Lilley Limited,Transformation,Property Services,The Point,1886,Responsive Works - Buildings,13/09/2021,Premises Related Expenditure,131333,Transformation,Economic Growth
20724.49,J Pugh-Lewis Limited,Capital Expenditure,Communities,Gresham Pitches,0280,Projects & Activities,08/09/2021,Supplies & Services,131616,Capital Expenditure,Economic Growth
19758,Langar Cum Barnstone Parish Council,General Fund Summary,Cies,Parish Council Precepts,1990,Parish Precepts,22/09/2021,Transfers Expenditure,125947,General Fund Summary,Finance
19130,Gotham Parish Council,General Fund Summary,Cies,Parish Council Precepts,1990,Parish Precepts,22/09/2021,Transfers Expenditure,125936,General Fund Summary,Finance
19119.5,Acs Systems Uk Ltd T/A Acs Office Solutions,Capital Expenditure,Finance & Corporate Services,Ict Replacement Programme,0592,Computer Hardware,19/08/2021,Supplies & Services,129701,Capital Expenditure,Corporate Services
18625,Holme Pierrepont & Gamston Parish Council,General Fund Summary,Cies,Parish Council Precepts,1990,Parish Precepts,22/09/2021,Transfers Expenditure,125941,General Fund Summary,Finance
18250,Civica Uk Ltd,Finance & Corporate Services,Ict,It Rechargeable Costs,4722,Maintenance Contracts - S&S,20/09/2021,Supplies & Services,131332,Finance & Corporate Services,Corporate Services
18212.26,Hec Contracting Ltd.,Capital Expenditure,Transformation & Innovation,Energy Efficiency Led Lighting,0207,Contractors-Third Party,28/07/2021,Third Party Payments,129773,Capital Expenditure,Economic Growth
18000,Cote Restaurant Group Ltd,Assets,Current Assets,Covid19 Funding (Drs),6219,Restart Grants,30/07/2021,Restart Grants,130371,Assets,Finance
,,, Level 5 Cost Centre Name,Level 9 Cost Centre Name,Level 9 Cost Centre Code,Level 9 Account Name,Date Paid, Level 5 Account Name,Transaction Reference,Level 3 Cost Centre Name,Department 
18000,David Lloyd Leisure Ltd,Assets,Current Assets,Covid19 Funding (Drs),6219,Restart Grants,30/07/2021,Restart Grants,130365,Assets,Finance
18000,Holme Pierrepont Leisure Trust Ltd,Assets,Current Assets,Covid19 Funding (Drs),6219,Restart Grants,30/07/2021,Restart Grants,130361,Assets,Finance
18000,Marstons Plc,Assets,Current Assets,Covid19 Funding (Drs),6219,Restart Grants,30/07/2021,Restart Grants,130363,Assets,Finance
16750,Sutton Bonington Parish Council,General Fund Summary,Cies,Parish Council Precepts,1990,Parish Precepts,22/09/2021,Transfers Expenditure,125959,General Fund Summary,Finance
15750,Nottinghamshire Wildlife Trust,Communities,Community Development,Environmental Promotion,1590,Legal & Professional Services,29/09/2021,Supplies & Services,132246,Communities,Public Protection
15732.99,Civica Uk Ltd,Neighbourhoods,Strategic Housing,Choice Based Lettings,1107,Partnership Workings,21/07/2021,Supplies & Services,128862,Neighbourhoods,Public Protection
15250.83,Allan Joyce Architects Ltd,Capital Expenditure,Transformation & Innovation,Cotgrave Phase 2,0387,Legal & Professional Services,19/08/2021,Supplies & Services,130584,Capital Expenditure,Economic Growth
15000,Rushcliffe Cvs,Communities,Community Development,Community Development,1581,Grants,30/07/2021,Supplies & Services,129783,Communities,Neighbourhoods
14456.62,Gee Tee Building Services,Capital Expenditure,Neighbourhoods,Disabled Facilities Grant,0332,Grants,29/09/2021,Supplies & Services,132052,Capital Expenditure,Public Protection
13530,One51 Es Plastics (Uk) Ltd T/A Mgb Plastics,Neighbourhoods,Waste & Fleet Management,Waste Collection,8403,Other Equipment/Materials,08/07/2021,Supplies & Services,128645,Neighbourhoods,Neighbourhoods
13530,One51 Es Plastics (Uk) Ltd T/A Mgb Plastics,Neighbourhoods,Waste & Fleet Management,Waste Collection,8403,Other Equipment/Materials,08/09/2021,Supplies & Services,131141,Neighbourhoods,Neighbourhoods
12000,Cafe Piano (Radcliffe On Trent) Ltd,Assets,Current Assets,Covid19 Funding (Drs),6219,Restart Grants,15/07/2021,Restart Grants,129835,Assets,Finance
12000,Delhi Nights,Assets,Current Assets,Covid19 Funding (Drs),6219,Restart Grants,01/07/2021,Restart Grants,129409,Assets,Finance
12000,Delhi Nights,Assets,Current Assets,Covid19 Funding (Drs),6219,Restart Grants,15/07/2021,Restart Grants,129833,Assets,Finance
12000,Lexo Yellow Limited,Assets,Current Assets,Covid19 Funding (Drs),6219,Restart Grants,30/07/2021,Restart Grants,130399,Assets,Finance
12000,Tgs Bingham Ltd,Assets,Current Assets,Covid19 Funding (Drs),6219,Restart Grants,30/07/2021,Restart Grants,130358,Assets,Finance
12000,The Rancliffe Arms,Assets,Current Assets,Covid19 Funding (Drs),6219,Restart Grants,15/07/2021,Restart Grants,129847,Assets,Finance
12000,The Wheatsheaf Bingham Llp,Assets,Current Assets,Covid19 Funding (Drs),6219,Restart Grants,30/07/2021,Restart Grants,130400,Assets,Finance
11966.35,Nottinghamshire County Council,Liabilities,Long Term Liabilities,Stanford Hall - Transport,6338,Balance Sheet Exp In The Year,17/08/2021,Balance Sheet Exp In The Year,130181,Liabilities,Finance
11880,One51 Es Plastics (Uk) Ltd T/A Mgb Plastics,Neighbourhoods,Waste & Fleet Management,Waste Collection,8403,Other Equipment/Materials,08/07/2021,Supplies & Services,128747,Neighbourhoods,Neighbourhoods
11653.98,Print Image Facilities Llp,Finance & Corporate Services,Democratic Services,Electoral Registration,1026,Postages,04/08/2021,Supplies & Services,130221,Finance & Corporate Services,Chief Executive Department 
11175,Bunny Parish Council,General Fund Summary,Cies,Parish Council Precepts,1990,Parish Precepts,22/09/2021,Transfers Expenditure,125922,General Fund Summary,Finance
10777,Apw (Nottm) Ltd,Capital Expenditure,Neighbourhoods,Disabled Facilities Grant,0332,Grants,12/08/2021,Supplies & Services,130748,Capital Expenditure,Public Protection
10150,Ridge And Partners Llp,Capital Expenditure,Transformation & Innovation,The Crematorium,0684,Legal & Professional Services,08/07/2021,Supplies & Services,129595,Capital Expenditure,Neighbourhoods
10150,Ridge And Partners Llp,Capital Expenditure,Transformation & Innovation,The Crematorium,0684,Legal & Professional Services,17/08/2021,Supplies & Services,130902,Capital Expenditure,Neighbourhoods
10000,Loungers Uk Ltd,Assets,Current Assets,Covid19 Funding (Drs),6219,Restart Grants,30/07/2021,Restart Grants,130353,Assets,Finance
10000,Parkwood Leisure Ltd,Capital Expenditure,Transformation & Innovation,Bingham Leisure Hub,0314,Contractors-Third Party,19/08/2021,Third Party Payments,130630,Capital Expenditure,Neighbourhoods
9926.81,Apw (Nottm) Ltd,Capital Expenditure,Neighbourhoods,Disabled Facilities Grant,0332,Grants,24/08/2021,Supplies & Services,131001,Capital Expenditure,Public Protection
9601.99,Via East Midlands Ltd,Capital Expenditure,Transformation & Innovation,Manvers Bp Cp Surface/Drain,0206,Contractors-Third Party,04/08/2021,Third Party Payments,129494,Capital Expenditure,Economic Growth
9500,Kelake Ltd,Neighbourhoods,Waste & Fleet Management,Streetwise Contract,8301,Legal & Professional Services,21/09/2021,Supplies & Services,132017,Neighbourhoods,Neighbourhoods
9500,Looking Local Ltd,Finance & Corporate Services,Ict,It Rechargeable Costs,4722,Maintenance Contracts - S&S,22/09/2021,Supplies & Services,131446,Finance & Corporate Services,Corporate Services
9383,Ridge And Partners Llp,Capital Expenditure,Transformation & Innovation,The Crematorium,0684,Legal & Professional Services,08/09/2021,Supplies & Services,131619,Capital Expenditure,Neighbourhoods
8800,Henry Riley Llp,Capital Expenditure,Transformation & Innovation,Bingham Leisure Hub,0314,Legal & Professional Services,15/07/2021,Supplies & Services,129540,Capital Expenditure,Neighbourhoods
8800,Henry Riley Llp,Capital Expenditure,Transformation & Innovation,Bingham Leisure Hub,0314,Legal & Professional Services,19/08/2021,Supplies & Services,130625,Capital Expenditure,Neighbourhoods
8800,Henry Riley Llp,Capital Expenditure,Transformation & Innovation,Bingham Leisure Hub,0314,Legal & Professional Services,22/09/2021,Supplies & Services,131351,Capital Expenditure,Neighbourhoods
8750,Melton Borough Council,Finance & Corporate Services,Financial Services,Corporate Management,4895,Legal & Professional Services,22/09/2021,Supplies & Services,131721,Finance & Corporate Services,Finance
8292,Newark And Sherwood D C,Finance & Corporate Services,Revenues & Benefits,Nndr,1038,Legal & Professional Services,30/07/2021,Supplies & Services,130114,Finance & Corporate Services,Finance
8291.9,Nottingham City Council,Transformation,Human Resources,Human Resources,4709,Agency Staff,04/08/2021,Employee Related Expenditure,128880,Transformation,Chief Executive Department 
8283.48,Aumas Limited,Capital Expenditure,Neighbourhoods,Disabled Facilities Grant,0332,Grants,15/09/2021,Supplies & Services,131808,Capital Expenditure,Public Protection
8118.22,South Notts Builders Ltd,Capital Expenditure,Neighbourhoods,Disabled Facilities Grant,0332,Grants,16/07/2021,Supplies & Services,129804,Capital Expenditure,Public Protection
8000,Belvoir Foot Health Clinic,Assets,Current Assets,Covid19 Funding (Drs),6219,Restart Grants,30/07/2021,Restart Grants,130357,Assets,Finance
8000,Bryer One Ltd,Assets,Current Assets,Covid19 Funding (Drs),6219,Restart Grants,15/07/2021,Restart Grants,129834,Assets,Finance
8000,Burnside Memorial Hall,Assets,Current Assets,Covid19 Funding (Drs),6219,Restart Grants,15/07/2021,Restart Grants,129839,Assets,Finance
8000,Carol Susan Henderson,Assets,Current Assets,Covid19 Funding (Drs),6219,Restart Grants,15/07/2021,Restart Grants,129841,Assets,Finance
8000,Dhaka Delhi Ltd,Assets,Current Assets,Covid19 Funding (Drs),6219,Restart Grants,15/07/2021,Restart Grants,129837,Assets,Finance
8000,Flawless Skin Laser Clinic,Assets,Current Assets,Covid19 Funding (Drs),6219,Restart Grants,01/07/2021,Restart Grants,129417,Assets,Finance
8000,Gino'S Ristorante Ltd,Assets,Current Assets,Covid19 Funding (Drs),6219,Restart Grants,01/07/2021,Restart Grants,129413,Assets,Finance
8000,Gourmet Coffee Bar & Kitchen Ltd,Assets,Current Assets,Covid19 Funding (Drs),6219,Restart Grants,30/07/2021,Restart Grants,130351,Assets,Finance
8000,Gracie B Ltd,Assets,Current Assets,Covid19 Funding (Drs),6219,Restart Grants,01/07/2021,Restart Grants,129411,Assets,Finance
8000,Hair Matters,Assets,Current Assets,Covid19 Funding (Drs),6219,Restart Grants,15/07/2021,Restart Grants,129842,Assets,Finance
8000,Heat Indian Restaurant,Assets,Current Assets,Covid19 Funding (Drs),6219,Restart Grants,30/07/2021,Restart Grants,130350,Assets,Finance
,,, Level 5 Cost Centre Name,Level 9 Cost Centre Name,Level 9 Cost Centre Code,Level 9 Account Name,Date Paid, Level 5 Account Name,Transaction Reference,Level 3 Cost Centre Name,Department 
8000,Hubble Bar,Assets,Current Assets,Covid19 Funding (Drs),6219,Restart Grants,01/07/2021,Restart Grants,129419,Assets,Finance
8000,Jane Lewis Fitness,Assets,Current Assets,Covid19 Funding (Drs),6219,Restart Grants,01/07/2021,Restart Grants,129418,Assets,Finance
8000,Js Hairdressers,Assets,Current Assets,Covid19 Funding (Drs),6219,Restart Grants,30/07/2021,Restart Grants,130370,Assets,Finance
8000,Keyworth Sports Association,Assets,Current Assets,Covid19 Funding (Drs),6219,Restart Grants,30/07/2021,Restart Grants,130360,Assets,Finance
8000,Kinoulton Village Hall,Assets,Current Assets,Covid19 Funding (Drs),6219,Restart Grants,15/07/2021,Restart Grants,129845,Assets,Finance
8000,Merriel Blythe,Assets,Current Assets,Covid19 Funding (Drs),6219,Restart Grants,01/07/2021,Restart Grants,129420,Assets,Finance
8000,Mrs Coffee Ltd,Assets,Current Assets,Covid19 Funding (Drs),6219,Restart Grants,30/07/2021,Restart Grants,130354,Assets,Finance
8000,Normanton On Soar Community Centre,Assets,Current Assets,Covid19 Funding (Drs),6219,Restart Grants,01/07/2021,Restart Grants,129421,Assets,Finance
8000,Pizza Pizza Plus Ltd,Assets,Current Assets,Covid19 Funding (Drs),6219,Restart Grants,01/07/2021,Restart Grants,129414,Assets,Finance
8000,Proaesthetics,Assets,Current Assets,Covid19 Funding (Drs),6219,Restart Grants,15/07/2021,Restart Grants,129844,Assets,Finance
8000,P.Waller (Decorators) Ltd,Capital Expenditure,Communities,Gresham Pavilion,0347,Contractors-Third Party,09/09/2021,Third Party Payments,131239,Capital Expenditure,Neighbourhoods
8000,Samantha Rose Ltd,Assets,Current Assets,Covid19 Funding (Drs),6219,Restart Grants,30/07/2021,Restart Grants,130359,Assets,Finance
8000,Smart Beauty,Assets,Current Assets,Covid19 Funding (Drs),6219,Restart Grants,01/07/2021,Restart Grants,129415,Assets,Finance
8000,Smart Hair,Assets,Current Assets,Covid19 Funding (Drs),6219,Restart Grants,01/07/2021,Restart Grants,129412,Assets,Finance
8000,Strettonhealth,Assets,Current Assets,Covid19 Funding (Drs),6219,Restart Grants,30/07/2021,Restart Grants,130355,Assets,Finance
8000,Stylish Strands Hair Design By Fj,Assets,Current Assets,Covid19 Funding (Drs),6219,Restart Grants,01/07/2021,Restart Grants,129407,Assets,Finance
8000,The Willow Marsh Farm,Assets,Current Assets,Covid19 Funding (Drs),6219,Restart Grants,30/07/2021,Restart Grants,130356,Assets,Finance
8000,Tom'S Barber Shop,Assets,Current Assets,Covid19 Funding (Drs),6219,Restart Grants,01/07/2021,Restart Grants,129416,Assets,Finance
7900,Nottinghamshire County Council,Liabilities,Long Term Liabilities,Cotgrave Colliery - Cycle Path,6739,Balance Sheet Exp In The Year,17/08/2021,Balance Sheet Exp In The Year,130180,Liabilities,Finance
7500,East Leake Parish Council,Communities,Community Development,Environmental Promotion,1590,Legal & Professional Services,29/09/2021,Supplies & Services,132062,Communities,Public Protection
7500,Peter Tew & Co,Transformation,Customer Services,Customer Services,4807,Premises Rents,13/09/2021,Premises Related Expenditure,131160,Transformation,Corporate Services
7457.6,Carlton Design & Fabrication,Capital Expenditure,Neighbourhoods,Disabled Facilities Grant,0332,Grants,28/07/2021,Supplies & Services,130238,Capital Expenditure,Public Protection
7298.66,Aumas Limited,Capital Expenditure,Neighbourhoods,Disabled Facilities Grant,0332,Grants,17/08/2021,Supplies & Services,130895,Capital Expenditure,Public Protection
6791.73,Frontline Recruitment Ltd,Neighbourhoods,Waste & Fleet Management,Waste Collection,8403,Agency Staff,08/09/2021,Employee Related Expenditure,131507,Neighbourhoods,Neighbourhoods
6733.5,Glen Wilson Ltd,Capital Expenditure,Neighbourhoods,Clc Pool Ventilation,0343,Contractors-Third Party,17/08/2021,Third Party Payments,130835,Capital Expenditure,Neighbourhoods
6592.62,Tunstall Response Ltd,Neighbourhoods,Strategic Housing,Home Alarms,1137,Other Services,15/09/2021,Supplies & Services,131839,Neighbourhoods,Public Protection
6539,Apw (Nottm) Ltd,Capital Expenditure,Neighbourhoods,Disabled Facilities Grant,0332,Grants,12/08/2021,Supplies & Services,130747,Capital Expenditure,Public Protection
6300,Wallgate Limited,Transformation,Property Services,Parish Run Pub Conveniences,1072,Service Maintenance Contracts,15/09/2021,Premises Related Expenditure,131309,Transformation,Economic Growth
6127.13,Lodge Tyre Co.Ltd,Neighbourhoods,Waste & Fleet Management,Waste Collection,8403,Tyres,24/08/2021,Transport Related Expenditure,131124,Neighbourhoods,Neighbourhoods
6062.17,Frontline Recruitment Ltd,Neighbourhoods,Waste & Fleet Management,Waste Collection,8403,Agency Staff,19/08/2021,Employee Related Expenditure,130020,Neighbourhoods,Neighbourhoods
6018.75,Frontline Recruitment Ltd,Neighbourhoods,Waste & Fleet Management,Waste Collection,8403,Agency Staff,13/07/2021,Employee Related Expenditure,129666,Neighbourhoods,Neighbourhoods
6006,Magpie Security Limited,Neighbourhoods,Environmental Health,Public Health,1127,Legal & Professional Services,15/09/2021,Supplies & Services,131698,Neighbourhoods,Public Protection
6000,Broxtowe Youth Homelessness,Neighbourhoods,Strategic Housing,Homelessness Prevention,1147,Grants,22/09/2021,Supplies & Services,131621,Neighbourhoods,Public Protection
6000,Culture; Learning And Libraries (Midlands),Assets,Current Assets,Covid19 Funding (Drs),6219,Restart Grants,15/07/2021,Restart Grants,129843,Assets,Finance
6000,Jacobs & Turner Ltd T/A Trespass,Assets,Current Assets,Covid19 Funding (Drs),6219,Restart Grants,30/07/2021,Restart Grants,130362,Assets,Finance
6000,Nottingham And District Cab,Neighbourhoods,Strategic Housing,Homelessness Prevention,1147,Grants,19/08/2021,Supplies & Services,130708,Neighbourhoods,Public Protection
6000,Nottingham And District Cab,Neighbourhoods,Strategic Housing,Homelessness Prevention,1147,Grants,19/08/2021,Supplies & Services,130709,Neighbourhoods,Public Protection
5908,Nottingham Insulations Ltd,Capital Expenditure,Communities,Gresham Pavilion,0347,Responsive Works - Buildings,27/08/2021,Premises Related Expenditure,131242,Capital Expenditure,Neighbourhoods
5904,Nottinghamshire County Council,Communities,Planning Policy,Land Charges,1033,Other Services,09/09/2021,Supplies & Services,131571,Communities,Planning
5817.84,Eon,Transformation,Economic Regeneration,Cotgrave Hub/Msc -Shared Entry,1878,Electricity,29/09/2021,Premises Related Expenditure,132068,Transformation,Economic Growth
5773.1,Virgin Media Business,Capital Expenditure,Transformation & Innovation,The Crematorium,0684,Programme Budget,19/08/2021,Premises Related Expenditure,131010,Capital Expenditure,Neighbourhoods
5771.01,Bt Telephone Payment Centre,Finance & Corporate Services,Ict,It Rechargeable Costs,4722,Maintenance Contracts - S&S,28/07/2021,Supplies & Services,129947,Finance & Corporate Services,Corporate Services
5766.88,Frontline Recruitment Ltd,Neighbourhoods,Waste & Fleet Management,Waste Collection,8403,Agency Staff,19/08/2021,Employee Related Expenditure,130527,Neighbourhoods,Neighbourhoods
5762.74,Severn Trent Water,Neighbourhoods,Waste & Fleet Management,Tanker Services,1948,Waste Disposal,19/08/2021,Supplies & Services,129704,Neighbourhoods,Neighbourhoods
5737,Via East Midlands Ltd,Communities,Planning Policy,Land Charges,1033,Other Services,02/09/2021,Supplies & Services,131336,Communities,Planning
5703.2,Frontline Recruitment Ltd,Neighbourhoods,Waste & Fleet Management,Waste Collection,8403,Agency Staff,19/08/2021,Employee Related Expenditure,130681,Neighbourhoods,Neighbourhoods
5685.95,Lodge Tyre Co.Ltd,Neighbourhoods,Waste & Fleet Management,Waste Collection,8403,Tyres,08/07/2021,Transport Related Expenditure,129535,Neighbourhoods,Neighbourhoods
5684.97,Toot Hill School,Neighbourhoods,Leisure Contracts & Car Parks,Leisure Management Contract,1795,Electricity,21/07/2021,Premises Related Expenditure,129365,Neighbourhoods,Neighbourhoods
5655,New Dec Interiors Ltd,Capital Expenditure,Neighbourhoods,Disabled Facilities Grant,0332,Grants,28/07/2021,Supplies & Services,130210,Capital Expenditure,Public Protection
5633.52,Severn Trent Water,Neighbourhoods,Waste & Fleet Management,Tanker Services,1948,Waste Disposal,19/08/2021,Supplies & Services,130873,Neighbourhoods,Neighbourhoods
,,, Level 5 Cost Centre Name,Level 9 Cost Centre Name,Level 9 Cost Centre Code,Level 9 Account Name,Date Paid, Level 5 Account Name,Transaction Reference,Level 3 Cost Centre Name,Department 
5623.05,Toot Hill School,Neighbourhoods,Leisure Contracts & Car Parks,Leisure Management Contract,1795,Electricity,21/07/2021,Premises Related Expenditure,129367,Neighbourhoods,Neighbourhoods
5544.65,Toot Hill School,Neighbourhoods,Leisure Contracts & Car Parks,Leisure Management Contract,1795,Electricity,21/07/2021,Premises Related Expenditure,127581,Neighbourhoods,Neighbourhoods
5541.06,Frontline Recruitment Ltd,Neighbourhoods,Waste & Fleet Management,Waste Collection,8403,Agency Staff,13/07/2021,Employee Related Expenditure,129550,Neighbourhoods,Neighbourhoods
5521.34,As Enterprises Limited,Capital Expenditure,Transformation & Innovation,Cotgrave Phase 2,0387,Contractors-Third Party,08/09/2021,Third Party Payments,131629,Capital Expenditure,Economic Growth
5500,Trent Valley Plumbing & Build,Capital Expenditure,Neighbourhoods,Disabled Facilities Grant,0332,Grants,29/09/2021,Supplies & Services,132157,Capital Expenditure,Public Protection
5446.1,Frontline Recruitment Ltd,Neighbourhoods,Waste & Fleet Management,Waste Collection,8403,Agency Staff,19/08/2021,Employee Related Expenditure,130155,Neighbourhoods,Neighbourhoods
5375,Nottingham City Council,Finance & Corporate Services,Democratic Services,Members Services,1000,Subscriptions,13/07/2021,Supplies & Services,129640,Finance & Corporate Services,Corporate Services
5333,Create! West Bridgford,Assets,Current Assets,Covid19 Funding (Drs),6219,Restart Grants,30/07/2021,Restart Grants,130352,Assets,Finance
5333,Little Mouse Pottery,Assets,Current Assets,Covid19 Funding (Drs),6219,Restart Grants,30/07/2021,Restart Grants,130401,Assets,Finance
5312.5,Ghm Planning Limited,Communities,Planning & Growth,Development Control,1161,Agency Staff,15/07/2021,Employee Related Expenditure,129148,Communities,Planning
5283.39,Frontline Recruitment Ltd,Neighbourhoods,Waste & Fleet Management,Waste Collection,8403,Agency Staff,19/08/2021,Employee Related Expenditure,130887,Neighbourhoods,Neighbourhoods
5278.37,Toot Hill School,Neighbourhoods,Leisure Contracts & Car Parks,Leisure Management Contract,1795,Gas,21/07/2021,Premises Related Expenditure,129369,Neighbourhoods,Neighbourhoods
5236.7,Carlton Design & Fabrication,Capital Expenditure,Neighbourhoods,Disabled Facilities Grant,0332,Grants,12/08/2021,Supplies & Services,130746,Capital Expenditure,Public Protection
5219.72,Frontline Recruitment Ltd,Neighbourhoods,Waste & Fleet Management,Waste Collection,8403,Agency Staff,13/07/2021,Employee Related Expenditure,129551,Neighbourhoods,Neighbourhoods
5178,Vipre Security Limited,Finance & Corporate Services,Ict,It Rechargeable Costs,4722,Cyber Security,24/08/2021,Supplies & Services,130619,Finance & Corporate Services,Corporate Services
5080,Waste Investigations Support Ltd,Neighbourhoods,Environmental Health,Public Health,1127,Legal & Professional Services,15/07/2021,Supplies & Services,129381,Neighbourhoods,Public Protection
5040,Et Planning Ltd,Communities,Planning & Growth,Development Control,1161,Legal & Professional Services,30/07/2021,Supplies & Services,130039,Communities,Planning
5000,Friary Drop In,Neighbourhoods,Strategic Housing,Homeless B&B,1110,Grants,19/08/2021,Supplies & Services,130682,Neighbourhoods,Public Protection
4910.92,Total Bathing,Capital Expenditure,Neighbourhoods,Disabled Facilities Grant,0332,Grants,15/09/2021,Supplies & Services,131700,Capital Expenditure,Public Protection
4877.45,Toot Hill School,Neighbourhoods,Leisure Contracts & Car Parks,Leisure Management Contract,1795,Gas,21/07/2021,Premises Related Expenditure,128871,Neighbourhoods,Neighbourhoods
4832,Jwa Building Services,Capital Expenditure,Neighbourhoods,Disabled Facilities Grant,0332,Grants,28/07/2021,Supplies & Services,130147,Capital Expenditure,Public Protection
4737.14,The National Leaflet Company,Finance & Corporate Services,"Performance, Repn & Comms",Performance And Reputation,4710,External Printing,13/07/2021,Supplies & Services,129168,Finance & Corporate Services,Corporate Services
4727.56,Frontline Recruitment Ltd,Neighbourhoods,Waste & Fleet Management,Waste Collection,8403,Agency Staff,08/09/2021,Employee Related Expenditure,131307,Neighbourhoods,Neighbourhoods
4692,Trent Valley Plumbing & Build,Capital Expenditure,Neighbourhoods,Disabled Facilities Grant,0332,Grants,06/09/2021,Supplies & Services,131445,Capital Expenditure,Public Protection
4680,Waste Investigations Support Ltd,Neighbourhoods,Environmental Health,Public Health,1127,Legal & Professional Services,08/07/2021,Supplies & Services,129531,Neighbourhoods,Public Protection
4669.43,Print Image Network Ltd,Finance & Corporate Services,Democratic Services,Electoral Registration,1026,External Printing,19/08/2021,Supplies & Services,130816,Finance & Corporate Services,Chief Executive Department 
4656.8,Total Bathing,Capital Expenditure,Neighbourhoods,Disabled Facilities Grant,0332,Grants,29/09/2021,Supplies & Services,132051,Capital Expenditure,Public Protection
4630.75,Jne Security Ltd,Neighbourhoods,Environmental Health,Community Safety,1598,Projects & Activities,29/09/2021,Supplies & Services,132064,Neighbourhoods,Public Protection
4576.46,Toot Hill School,Neighbourhoods,Leisure Contracts & Car Parks,Leisure Management Contract,1795,Electricity,15/09/2021,Premises Related Expenditure,130332,Neighbourhoods,Neighbourhoods
4570,Sherwood Contractors Ltd,Capital Expenditure,Neighbourhoods,Disabled Facilities Grant,0332,Grants,06/09/2021,Supplies & Services,131444,Capital Expenditure,Public Protection
4541.28,Terminal Four,Finance & Corporate Services,Ict,It Rechargeable Costs,4722,Maintenance Contracts - S&S,17/09/2021,Supplies & Services,131346,Finance & Corporate Services,Corporate Services
4522.5,Britwind Limited,Capital Expenditure,Communities,Rcp Visitor Centre,0504,Contractors-Third Party,17/08/2021,Third Party Payments,130878,Capital Expenditure,Economic Growth
4500,Green Rewards Ltd T/A Jump,Communities,Community Development,Community Development,1581,Projects & Activities,02/09/2021,Supplies & Services,130695,Communities,Neighbourhoods
4500,The Saville Group Ltd,Finance & Corporate Services,Ict,It Rechargeable Costs,4722,Maintenance Contracts - S&S,15/09/2021,Supplies & Services,131245,Finance & Corporate Services,Corporate Services
4488,Stormguard Flood Plan,Finance & Corporate Services,Democratic Services,Electoral Registration,1026,Postages,21/07/2021,Supplies & Services,129325,Finance & Corporate Services,Chief Executive Department 
4465,Cadline Limited,Finance & Corporate Services,Ict,It Rechargeable Costs,4722,Software,24/08/2021,Supplies & Services,129802,Finance & Corporate Services,Corporate Services
4429.12,Toot Hill School,Neighbourhoods,Leisure Contracts & Car Parks,Leisure Management Contract,1795,Electricity,29/09/2021,Premises Related Expenditure,131736,Neighbourhoods,Neighbourhoods
4395,Cds Services,Capital Expenditure,Neighbourhoods,Disabled Facilities Grant,0332,Grants,15/09/2021,Supplies & Services,131788,Capital Expenditure,Public Protection
4388,Dolphin Mobility East Mids Ltd,Capital Expenditure,Neighbourhoods,Disabled Facilities Grant,0332,Grants,25/08/2021,Supplies & Services,131161,Capital Expenditure,Public Protection
4364.05,Automated Door Systems,Capital Expenditure,Neighbourhoods,Disabled Facilities Grant,0332,Grants,01/07/2021,Supplies & Services,129135,Capital Expenditure,Public Protection
4362.1,Toot Hill School,Neighbourhoods,Leisure Contracts & Car Parks,Leisure Management Contract,1795,Gas,21/07/2021,Premises Related Expenditure,129491,Neighbourhoods,Neighbourhoods
4337.94,Acs Systems Uk Ltd T/A Acs Office Solutions,Finance & Corporate Services,Ict,It Rechargeable Costs,4722,Maintenance Contracts - S&S,28/07/2021,Supplies & Services,129953,Finance & Corporate Services,Corporate Services
4290.42,Frontline Recruitment Ltd,Neighbourhoods,Waste & Fleet Management,Waste Collection,8403,Agency Staff,24/08/2021,Employee Related Expenditure,131004,Neighbourhoods,Neighbourhoods
4250,Euromunicipal Ltd,Neighbourhoods,Waste & Fleet Management,Waste Collection,8403,Hire Of Transport/Plant,24/08/2021,Transport Related Expenditure,130540,Neighbourhoods,Neighbourhoods
4250,Euromunicipal Ltd,Neighbourhoods,Waste & Fleet Management,Waste Collection,8403,Hire Of Transport/Plant,24/08/2021,Transport Related Expenditure,130542,Neighbourhoods,Neighbourhoods
4232.5,Rattle And Roll Limited,Communities,Community Development,Holiday Activities & Food Prog,1594,Projects & Activities,09/09/2021,Supplies & Services,131693,Communities,Neighbourhoods
4188.02,Toot Hill School,Neighbourhoods,Leisure Contracts & Car Parks,Leisure Management Contract,1795,Gas,21/07/2021,Premises Related Expenditure,129366,Neighbourhoods,Neighbourhoods
4171.37,Bonsers Restoration Limited,Capital Expenditure,Transformation & Innovation,Bridgford Hall Refurbishment,0382,Contractors-Third Party,09/09/2021,Third Party Payments,130498,Capital Expenditure,Neighbourhoods
4059,Magpie Security Limited,Neighbourhoods,Environmental Health,Public Health,1127,Legal & Professional Services,15/09/2021,Supplies & Services,131699,Neighbourhoods,Public Protection
4023.5,Hodson Specialist Contractors,Capital Expenditure,Neighbourhoods,Blc Enhancements,0417,Responsive Works - Buildings,04/08/2021,Premises Related Expenditure,129786,Capital Expenditure,Economic Growth
4000,Caspian Kennels & Cattery,Assets,Current Assets,Covid19 Funding (Drs),6219,Addnl Restrictions Grant,01/07/2021,Addnl Restrictions Grant,129441,Assets,Finance
,,, Level 5 Cost Centre Name,Level 9 Cost Centre Name,Level 9 Cost Centre Code,Level 9 Account Name,Date Paid, Level 5 Account Name,Transaction Reference,Level 3 Cost Centre Name,Department 
4000,Delhi Nights,Assets,Current Assets,Covid19 Funding (Drs),6219,Addnl Restrictions Grant,01/07/2021,Addnl Restrictions Grant,129429,Assets,Finance
4000,Oxfam,Assets,Current Assets,Covid19 Funding (Drs),6219,Restart Grants,30/07/2021,Restart Grants,130366,Assets,Finance
4000,Oxfam,Assets,Current Assets,Covid19 Funding (Drs),6219,Restart Grants,30/07/2021,Restart Grants,130367,Assets,Finance
4000,Save The Children,Assets,Current Assets,Covid19 Funding (Drs),6219,Restart Grants,30/07/2021,Restart Grants,130368,Assets,Finance
4000,Tui Uk Retail Ltd,Assets,Current Assets,Covid19 Funding (Drs),6219,Restart Grants,30/07/2021,Restart Grants,130369,Assets,Finance
4000,Waterstones Booksellers Limited,Assets,Current Assets,Covid19 Funding (Drs),6219,Restart Grants,30/07/2021,Restart Grants,130372,Assets,Finance
4000,Wilford Lane Garage & Autocentre,Assets,Current Assets,Covid19 Funding (Drs),6219,Addnl Restrictions Grant,15/07/2021,Addnl Restrictions Grant,129813,Assets,Finance
3990,Apw (Nottm) Ltd,Capital Expenditure,Neighbourhoods,Disabled Facilities Grant,0332,Grants,28/07/2021,Supplies & Services,130149,Capital Expenditure,Public Protection
3875,Rattle And Roll Limited,Communities,Community Development,Holiday Activities & Food Prog,1594,Projects & Activities,10/08/2021,Supplies & Services,130761,Communities,Neighbourhoods
3735.14,The South Wolds Academy And Sixth Form,Neighbourhoods,Leisure Contracts & Car Parks,Leisure Management Contract,1795,Gas,29/09/2021,Premises Related Expenditure,131833,Neighbourhoods,Neighbourhoods
3699.36,Toot Hill School,Neighbourhoods,Leisure Contracts & Car Parks,Leisure Management Contract,1795,Gas,21/07/2021,Premises Related Expenditure,129330,Neighbourhoods,Neighbourhoods
3659.3,Penny O'Shea Consulting,Communities,Planning Policy,Development Plans,1232,Legal & Professional Services,16/07/2021,Supplies & Services,129935,Communities,Neighbourhoods
3654,Arc Industrial Cladding & Roofing Ltd,Capital Expenditure,Transformation & Innovation,Colliers Bp Cp Surface/Drain,0210,Contractors-Third Party,04/08/2021,Third Party Payments,129707,Capital Expenditure,Economic Growth
3603.71,Toot Hill School,Neighbourhoods,Leisure Contracts & Car Parks,Leisure Management Contract,1795,Gas,21/07/2021,Premises Related Expenditure,128872,Neighbourhoods,Neighbourhoods
3510,Waste Investigations Support Ltd,Neighbourhoods,Environmental Health,Public Health,1127,Legal & Professional Services,10/08/2021,Supplies & Services,130680,Neighbourhoods,Public Protection
3500,Apw (Nottm) Ltd,Capital Expenditure,Neighbourhoods,Disabled Facilities Grant,0332,Grants,06/09/2021,Supplies & Services,131195,Capital Expenditure,Public Protection
3500,Fisher Hargreaves Proctor,Capital Expenditure,Transformation & Innovation,Cotgrave Phase 2,0387,Legal & Professional Services,08/09/2021,Supplies & Services,131334,Capital Expenditure,Economic Growth
3424,Axess Systems Ltd,Finance & Corporate Services,Ict,It Rechargeable Costs,4722,Maintenance Contracts - S&S,26/07/2021,Supplies & Services,128749,Finance & Corporate Services,Corporate Services
3402.85,Toot Hill School,Neighbourhoods,Leisure Contracts & Car Parks,Leisure Management Contract,1795,Gas,21/07/2021,Premises Related Expenditure,129488,Neighbourhoods,Neighbourhoods
3250,Lnrs Data Services Ltd (Xperthr),Transformation,Human Resources,Human Resources,4709,Subscriptions,13/07/2021,Supplies & Services,129691,Transformation,Chief Executive Department 
3160.5,Nottinghamshire County Council,Communities,Planning Policy,Land Charges,1033,Other Services,17/09/2021,Supplies & Services,131732,Communities,Planning
3150,Ade Regeneration,Capital Expenditure,Transformation & Innovation,Bingham Leisure Hub,0314,Legal & Professional Services,27/08/2021,Supplies & Services,130880,Capital Expenditure,Neighbourhoods
3045,Iken Business Ltd,Capital Expenditure,Finance & Corporate Services,Applications/Apps,0605,Software,09/09/2021,Supplies & Services,130825,Capital Expenditure,Corporate Services
3000,Cushman And Wakefield Debenham Tie Leung Ltd,Communities,Planning & Growth,Development Control,1161,Legal & Professional Services,29/09/2021,Supplies & Services,131816,Communities,Planning
3000,Web-Labs,Finance & Corporate Services,Ict,It Rechargeable Costs,4722,Maintenance Contracts - S&S,27/08/2021,Supplies & Services,131196,Finance & Corporate Services,Corporate Services
2988,Geldards Llp,Capital Expenditure,Transformation & Innovation,The Crematorium,0684,Legal & Professional Services,13/07/2021,Supplies & Services,129682,Capital Expenditure,Neighbourhoods
2927,Weightmans Llp,Neighbourhoods,Leisure Contracts & Car Parks,Leisure Management Contract,1795,Legal & Professional Services,08/07/2021,Supplies & Services,129571,Neighbourhoods,Neighbourhoods
2925.11,Nra Roofing & Flooring Services Ltd,Capital Expenditure,Transformation & Innovation,Bridgford Hall Refurbishment,0382,Contractors-Third Party,15/07/2021,Third Party Payments,129522,Capital Expenditure,Neighbourhoods
2915,Sherwood Contractors Ltd,Capital Expenditure,Neighbourhoods,Disabled Facilities Grant,0332,Grants,15/07/2021,Supplies & Services,129692,Capital Expenditure,Public Protection
2871.79,Print Image Facilities Llp,Finance & Corporate Services,Democratic Services,Electoral Registration,1026,Postages,28/07/2021,Supplies & Services,129965,Finance & Corporate Services,Chief Executive Department 
2850,South Notts Fabrications Ltd,Transformation,Property Services,Arena Civic Centre,4718,Responsive Works - Buildings,13/07/2021,Premises Related Expenditure,129162,Transformation,Economic Growth
2824.44,Lift & Engineering Services Ltd,Transformation,Property Services,The Point,1886,Service Maintenance Contracts,27/09/2021,Premises Related Expenditure,132053,Transformation,Economic Growth
2800,Et Planning Ltd,Communities,Planning & Growth,Development Control,1161,Legal & Professional Services,30/07/2021,Supplies & Services,129708,Communities,Planning
2737.2,Mewies Engineering Consultants Ltd,Neighbourhoods,Leisure Contracts & Car Parks,Edwalton Golf Courses,1400,Legal & Professional Services,25/08/2021,Supplies & Services,130627,Neighbourhoods,Neighbourhoods
2667,Bracken Events Ltd,Assets,Current Assets,Covid19 Funding (Drs),6219,Addnl Restrictions Grant,15/07/2021,Addnl Restrictions Grant,129828,Assets,Finance
2667,Desperate Measures (Gb) Ltd,Assets,Current Assets,Covid19 Funding (Drs),6219,Restart Grants,30/07/2021,Restart Grants,130364,Assets,Finance
2667,Dogs Trust Ltd,Assets,Current Assets,Covid19 Funding (Drs),6219,Restart Grants,15/07/2021,Restart Grants,129848,Assets,Finance
2667,High Point Polo,Assets,Current Assets,Covid19 Funding (Drs),6219,Addnl Restrictions Grant,15/07/2021,Addnl Restrictions Grant,129814,Assets,Finance
2667,Kds Furniture Limited,Assets,Current Assets,Covid19 Funding (Drs),6219,Restart Grants,15/07/2021,Restart Grants,129836,Assets,Finance
2667,M1-Cars Ltd,Assets,Current Assets,Covid19 Funding (Drs),6219,Restart Grants,15/07/2021,Restart Grants,129840,Assets,Finance
2667,Philip Boardman,Assets,Current Assets,Covid19 Funding (Drs),6219,Restart Grants,01/07/2021,Restart Grants,129410,Assets,Finance
2667,Pukka Paws,Assets,Current Assets,Covid19 Funding (Drs),6219,Addnl Restrictions Grant,15/07/2021,Addnl Restrictions Grant,129812,Assets,Finance
2667,Radcliffe Road Cycles,Assets,Current Assets,Covid19 Funding (Drs),6219,Addnl Restrictions Grant,30/07/2021,Addnl Restrictions Grant,130376,Assets,Finance
2667,Rainbows And Lemondrops,Assets,Current Assets,Covid19 Funding (Drs),6219,Restart Grants,15/07/2021,Restart Grants,129838,Assets,Finance
2667,The Church Of England Childrens Society,Assets,Current Assets,Covid19 Funding (Drs),6219,Restart Grants,30/07/2021,Restart Grants,130373,Assets,Finance
2667,The Flower Room,Assets,Current Assets,Covid19 Funding (Drs),6219,Restart Grants,01/07/2021,Restart Grants,129408,Assets,Finance
2667,The Loft Hair And Beauty Studio,Assets,Current Assets,Covid19 Funding (Drs),6219,Addnl Restrictions Grant,15/07/2021,Addnl Restrictions Grant,129832,Assets,Finance
2667,Tradewold Ltd./League Of Friends Of Qmc,Assets,Current Assets,Covid19 Funding (Drs),6219,Restart Grants,15/07/2021,Restart Grants,129846,Assets,Finance
2660.63,Westco Ltd,Liabilities,Long Term Liabilities,Leasehold Deposits,6623,Balance Sheet Exp In The Year,01/07/2021,Balance Sheet Exp In The Year,128294,Liabilities,Finance
2623.66,Brian Cooper Architect,Capital Expenditure,Neighbourhoods,Disabled Facilities Grant,0332,Grants,22/07/2021,Supplies & Services,130035,Capital Expenditure,Public Protection
,,, Level 5 Cost Centre Name,Level 9 Cost Centre Name,Level 9 Cost Centre Code,Level 9 Account Name,Date Paid, Level 5 Account Name,Transaction Reference,Level 3 Cost Centre Name,Department 
2610,Macfloor Ltd,Capital Expenditure,Communities,Gresham Pavilion,0347,Contractors-Supplies & Servs,13/09/2021,Supplies & Services,131123,Capital Expenditure,Neighbourhoods
2609.54,Castle Water Limited,Communities,Community Development,Gresham,8950,Water Charges,10/08/2021,Premises Related Expenditure,130337,Communities,Neighbourhoods
2589.9,Nottingham City Council,Transformation,Human Resources,Human Resources,4709,Agency Staff,19/08/2021,Employee Related Expenditure,130891,Transformation,Chief Executive Department 
2500,Geldards Llp,Capital Expenditure,Transformation & Innovation,Abbey Road Redevelopment,0312,Legal & Professional Services,15/09/2021,Supplies & Services,131430,Capital Expenditure,Economic Growth
2482,Ruddington Parish Council,Communities,Community Development,Health Development,1058,Grants,24/08/2021,Supplies & Services,130553,Communities,Neighbourhoods
2450,William Saunders,Capital Expenditure,Transformation & Innovation,Bingham Leisure Hub,0314,Contractors-Third Party,13/07/2021,Third Party Payments,129568,Capital Expenditure,Neighbourhoods
2397.6,Civica Uk Ltd,Neighbourhoods,Strategic Housing,Home Alarms,1137,Partnership Workings,06/09/2021,Supplies & Services,130974,Neighbourhoods,Public Protection
2325,Arc Industrial Cladding & Roofing Ltd,Neighbourhoods,Leisure Contracts & Car Parks,Leisure Management Contract,1795,Responsive Works - Buildings,17/09/2021,Premises Related Expenditure,131690,Neighbourhoods,Neighbourhoods
2275,Dryden Consultancy Ltd,Finance & Corporate Services,Financial Services,Financial Services,4705,Legal & Professional Services,05/08/2021,Supplies & Services,130038,Finance & Corporate Services,Finance
2270,Box Property Consultants Ltd,Capital Expenditure,Transformation & Innovation,Cotgrave Phase 2,0387,Legal & Professional Services,13/07/2021,Supplies & Services,129318,Capital Expenditure,Economic Growth
2256,Obam Lift Services Ltd,Capital Expenditure,Neighbourhoods,Disabled Facilities Grant,0332,Grants,17/08/2021,Supplies & Services,130828,Capital Expenditure,Public Protection
2250,Pinders,Transformation,Property Services,Property Services,4713,Legal & Professional Services,15/07/2021,Supplies & Services,129534,Transformation,Economic Growth
2207.32,Castle Water Limited,Communities,Community Development,Gamston Community Hall,8992,Water Charges,10/08/2021,Premises Related Expenditure,130339,Communities,Neighbourhoods
2200,Quantum Theatre,Transformation,Economic Regeneration,High Streets Safely,1881,Legal & Professional Services,23/09/2021,Supplies & Services,131964,Transformation,Economic Growth
2133,Carlton Design & Fabrication,Capital Expenditure,Neighbourhoods,Disabled Facilities Grant,0332,Grants,24/08/2021,Supplies & Services,131000,Capital Expenditure,Public Protection
2117.98,Toot Hill School,Neighbourhoods,Leisure Contracts & Car Parks,Leisure Management Contract,1795,Gas,20/08/2021,Premises Related Expenditure,130333,Neighbourhoods,Neighbourhoods
2098,Trent Bridge Community Trust,Communities,Community Development,Health Development,1058,Grants,19/08/2021,Supplies & Services,129968,Communities,Neighbourhoods
2086.46,Nottinghamshire County Council,Neighbourhoods,Leisure Contracts & Car Parks,Leisure Management Contract,1795,Grounds Maintenance,21/07/2021,Premises Related Expenditure,129493,Neighbourhoods,Neighbourhoods
2083.01,Macildowie Associates Limited,Finance & Corporate Services,Financial Services,Financial Services,4705,Agency Staff,03/08/2021,Employee Related Expenditure,130105,Finance & Corporate Services,Finance
2083.01,Macildowie Associates Limited,Finance & Corporate Services,Financial Services,Financial Services,4705,Agency Staff,03/08/2021,Employee Related Expenditure,130229,Finance & Corporate Services,Finance
2083.01,Macildowie Associates Limited,Finance & Corporate Services,Financial Services,Financial Services,4705,Agency Staff,17/08/2021,Employee Related Expenditure,130610,Finance & Corporate Services,Finance
2083.01,Macildowie Associates Limited,Finance & Corporate Services,Financial Services,Financial Services,4705,Agency Staff,17/08/2021,Employee Related Expenditure,130817,Finance & Corporate Services,Finance
2083.01,Macildowie Associates Limited,Finance & Corporate Services,Financial Services,Financial Services,4705,Agency Staff,19/08/2021,Employee Related Expenditure,130975,Finance & Corporate Services,Finance
2083.01,Macildowie Associates Limited,Finance & Corporate Services,Financial Services,Financial Services,4705,Agency Staff,02/09/2021,Employee Related Expenditure,131197,Finance & Corporate Services,Finance
2083.01,Macildowie Associates Limited,Finance & Corporate Services,Financial Services,Financial Services,4705,Agency Staff,15/09/2021,Employee Related Expenditure,131603,Finance & Corporate Services,Finance
2083.01,Macildowie Associates Limited,Finance & Corporate Services,Financial Services,Financial Services,4705,Agency Staff,29/09/2021,Employee Related Expenditure,132031,Finance & Corporate Services,Finance
2083.01,Macildowie Associates Limited,Finance & Corporate Services,Financial Services,Financial Services,4705,Agency Staff,29/09/2021,Employee Related Expenditure,132228,Finance & Corporate Services,Finance
2079.63,Macildowie Associates Limited,Finance & Corporate Services,Financial Services,Financial Services,4705,Agency Staff,21/09/2021,Employee Related Expenditure,131840,Finance & Corporate Services,Finance
2064,Institute Of Licensing,Neighbourhoods,Environmental Health,Environmental Health Ha,4743,Training Expenses,19/08/2021,Employee Related Expenditure,130671,Neighbourhoods,Public Protection
2052,East Midlands Building Consultancy,Capital Expenditure,Transformation & Innovation,The Crematorium,0684,Programme Budget,26/07/2021,Premises Related Expenditure,130148,Capital Expenditure,Neighbourhoods
2048.74,Sse Payment Centre,Transformation,Property Services,The Point,1886,Electricity,17/08/2021,Premises Related Expenditure,130567,Transformation,Economic Growth
2040,Inform Cpi Ltd,Finance & Corporate Services,Revenues & Benefits,Nndr,1038,Legal & Professional Services,08/07/2021,Supplies & Services,129169,Finance & Corporate Services,Finance
2027.21,Arden Winch & Co Ltd,Neighbourhoods,Waste & Fleet Management,Waste Collection,8403,Other Equipment/Materials,30/07/2021,Supplies & Services,128316,Neighbourhoods,Neighbourhoods
2007.39,Toot Hill School,Neighbourhoods,Leisure Contracts & Car Parks,Leisure Management Contract,1795,Gas,29/09/2021,Premises Related Expenditure,131734,Neighbourhoods,Neighbourhoods
2000,Circus Hubs Notts,Transformation,Economic Regeneration,High Streets Safely,1881,Legal & Professional Services,20/09/2021,Supplies & Services,131985,Transformation,Economic Growth
2000,Gino'S Ristorante Ltd,Assets,Current Assets,Covid19 Funding (Drs),6219,Addnl Restrictions Grant,01/07/2021,Addnl Restrictions Grant,129436,Assets,Finance
2000,Inform Cpi Ltd,Finance & Corporate Services,Revenues & Benefits,Nndr,1038,Subscriptions,12/08/2021,Supplies & Services,130766,Finance & Corporate Services,Finance
2000,Pizza Pizza Plus Ltd,Assets,Current Assets,Covid19 Funding (Drs),6219,Addnl Restrictions Grant,01/07/2021,Addnl Restrictions Grant,129437,Assets,Finance
2000,The Willow Marsh Farm,Assets,Current Assets,Covid19 Funding (Drs),6219,Addnl Restrictions Grant,30/07/2021,Addnl Restrictions Grant,130402,Assets,Finance
1975,Event Equipment Hire,Transformation,Economic Regeneration,High Streets Safely,1881,Legal & Professional Services,02/09/2021,Supplies & Services,131431,Transformation,Economic Growth
1900.5,Freeth Cartwright Llp,Transformation,Property Services,Cotgrave Ph2,1866,Legal & Professional Services,04/08/2021,Supplies & Services,130227,Transformation,Economic Growth
1896.74,Edf Energy,Communities,Community Development,Gresham,8950,Electricity,09/09/2021,Premises Related Expenditure,131608,Communities,Neighbourhoods
1869,Morris Vermaport Ltd,Transformation,Economic Regeneration,Cotgrave Hub/Msc - Main Bldg,1876,Responsive Works - Buildings,16/07/2021,Premises Related Expenditure,129536,Transformation,Economic Growth
1866.87,Service Level Management Ltd,Transformation,Bsu,Central Mail,4871,Postages,01/07/2021,Supplies & Services,128177,Transformation,Chief Executive Department 
1855,Park Avenue,Communities,Planning & Growth,Development Control,1161,Agency Staff,17/08/2021,Employee Related Expenditure,130686,Communities,Planning
1845.5,Edf Energy,Neighbourhoods,Leisure Contracts & Car Parks,Car Parks,1900,Electricity,24/08/2021,Premises Related Expenditure,130647,Neighbourhoods,Neighbourhoods
1800,Euromunicipal Ltd,Neighbourhoods,Waste & Fleet Management,Waste Collection,8403,Hire Of Transport/Plant,28/07/2021,Transport Related Expenditure,130017,Neighbourhoods,Neighbourhoods
1800,Nottingham Audio Visual Services Ltd,Communities,Community Development,Arts,1550,Projects & Activities,27/09/2021,Supplies & Services,131692,Communities,Neighbourhoods
1800,Park Avenue,Communities,Planning & Growth,Development Control,1161,Agency Staff,19/08/2021,Employee Related Expenditure,130917,Communities,Planning
1800,Park Avenue,Communities,Planning & Growth,Development Control,1161,Agency Staff,17/09/2021,Employee Related Expenditure,130977,Communities,Planning
,,, Level 5 Cost Centre Name,Level 9 Cost Centre Name,Level 9 Cost Centre Code,Level 9 Account Name,Date Paid, Level 5 Account Name,Transaction Reference,Level 3 Cost Centre Name,Department 
1800,Park Avenue,Communities,Planning & Growth,Development Control,1161,Agency Staff,17/09/2021,Employee Related Expenditure,131158,Communities,Planning
1800,Park Avenue,Communities,Planning & Growth,Development Control,1161,Agency Staff,27/09/2021,Employee Related Expenditure,132058,Communities,Planning
1800,Via East Midlands Ltd,Capital Expenditure,Communities,Gresham Pitches,0280,Legal & Professional Services,15/07/2021,Supplies & Services,129497,Capital Expenditure,Economic Growth
1777.4,Apw (Nottm) Ltd,Capital Expenditure,Neighbourhoods,Disabled Facilities Grant,0332,Grants,06/09/2021,Supplies & Services,131443,Capital Expenditure,Public Protection
1772.5,Pp Building Design,Capital Expenditure,Neighbourhoods,Disabled Facilities Grant,0332,Grants,23/09/2021,Supplies & Services,131137,Capital Expenditure,Public Protection
1760,Park Avenue,Communities,Planning & Growth,Development Control,1161,Agency Staff,17/09/2021,Employee Related Expenditure,131438,Communities,Planning
1750,Cornerstone Barristers,Transformation,Legal,Legal Services,4701,Other Income,10/08/2021,Income,130613,Transformation,Chief Executive Department 
1723.86,Reach Publishing Services Limited,Communities,Planning & Growth,Development Control,1161,Advertising,08/07/2021,Supplies & Services,129513,Communities,Planning
1705,Westcotes House Ltd,Neighbourhoods,Strategic Housing,Homeless B&B,1110,Housing-Emergency Accommodn,06/09/2021,Supplies & Services,131134,Neighbourhoods,Public Protection
1680,Trent Valley Plumbing & Build,Capital Expenditure,Neighbourhoods,Disabled Facilities Grant,0332,Grants,22/07/2021,Supplies & Services,130029,Capital Expenditure,Public Protection
1671.49,Macildowie Associates Limited,Finance & Corporate Services,Financial Services,Financial Services,4705,Agency Staff,21/09/2021,Employee Related Expenditure,131841,Finance & Corporate Services,Finance
1660,Carlton Design & Fabrication,Capital Expenditure,Neighbourhoods,Disabled Facilities Grant,0332,Grants,20/09/2021,Supplies & Services,131789,Capital Expenditure,Public Protection
1659.2,Via East Midlands Ltd,Capital Expenditure,Transformation & Innovation,The Crematorium,0684,Programme Budget,08/07/2021,Premises Related Expenditure,129495,Capital Expenditure,Neighbourhoods
1640,Park Avenue,Communities,Planning & Growth,Development Control,1161,Agency Staff,15/07/2021,Employee Related Expenditure,129716,Communities,Planning
1640,Park Avenue,Communities,Planning & Growth,Development Control,1161,Agency Staff,03/08/2021,Employee Related Expenditure,130329,Communities,Planning
1640,Park Avenue,Communities,Planning & Growth,Development Control,1161,Agency Staff,17/08/2021,Employee Related Expenditure,130687,Communities,Planning
1629,Hiring Wizard,Communities,Planning & Growth,Development Control,1161,Employee Advertising,05/08/2021,Employee Related Expenditure,130211,Communities,Planning
1629,Hiring Wizard,Communities,Planning & Growth,Development Control,1161,Employee Advertising,06/09/2021,Employee Related Expenditure,130213,Communities,Planning
1626.12,Gather Creative Ltd,Capital Expenditure,Transformation & Innovation,The Crematorium,0684,Contractors-Third Party,02/09/2021,Third Party Payments,131347,Capital Expenditure,Neighbourhoods
1620,Ghm Planning Limited,Communities,Planning & Growth,Development Control,1161,Agency Staff,15/07/2021,Employee Related Expenditure,129149,Communities,Planning
1608,Attenborough Industrial Doors,Transformation,Property Services,Colliers Ph 2,1892,Service Maintenance Contracts,17/08/2021,Premises Related Expenditure,129642,Transformation,Economic Growth
1600,Park Avenue,Communities,Planning & Growth,Development Control,1161,Agency Staff,13/07/2021,Employee Related Expenditure,129322,Communities,Planning
1600,Park Avenue,Communities,Planning & Growth,Development Control,1161,Agency Staff,21/07/2021,Employee Related Expenditure,129770,Communities,Planning
1600,Park Avenue,Communities,Planning & Growth,Development Control,1161,Agency Staff,21/07/2021,Employee Related Expenditure,129774,Communities,Planning
1585,Assoc Of Electoral Admin,Transformation,Human Resources,Corporate Training,4893,Training Expenses,22/07/2021,Employee Related Expenditure,130103,Transformation,Chief Executive Department 
1575,Dryden Consultancy Ltd,Finance & Corporate Services,Financial Services,Financial Services,4705,Legal & Professional Services,19/08/2021,Supplies & Services,130736,Finance & Corporate Services,Finance
1568.86,Sse Payment Centre,Transformation,Customer Services,Customer Services,4807,Electricity,03/08/2021,Premises Related Expenditure,130093,Transformation,Corporate Services
1543.8,Reach Publishing Services Limited,Communities,Planning & Growth,Development Control,1161,Advertising,27/08/2021,Supplies & Services,131264,Communities,Planning
1531.5,Streetwise Environmental Ltd           1,Communities,Community Development,West Park,8994,Responsive Works - Buildings,10/08/2021,Premises Related Expenditure,130247,Communities,Neighbourhoods
1520,Park Avenue,Communities,Planning & Growth,Development Control,1161,Agency Staff,21/07/2021,Employee Related Expenditure,129776,Communities,Planning
1506.83,Service Level Management Ltd,Transformation,Bsu,Central Mail,4871,Postages,06/09/2021,Supplies & Services,130749,Transformation,Chief Executive Department 
1501.45,Royal Mail Group Ltd,Transformation,Bsu,Central Mail,4871,Postages,22/07/2021,Supplies & Services,129945,Transformation,Chief Executive Department 
1500,Acoustickle,Assets,Current Assets,Covid19 Funding (Drs),6219,Addnl Restrictions Grant,30/07/2021,Addnl Restrictions Grant,130379,Assets,Finance
1500,Ainsley Stokes,Capital Expenditure,Neighbourhoods,Disabled Facilities Grant,0332,Grants,23/09/2021,Supplies & Services,131136,Capital Expenditure,Public Protection
1500,Ami Ford,Assets,Current Assets,Covid19 Funding (Drs),6219,Addnl Restrictions Grant,15/07/2021,Addnl Restrictions Grant,129821,Assets,Finance
1500,Andy La Gette Tc Ltd,Assets,Current Assets,Covid19 Funding (Drs),6219,Addnl Restrictions Grant,01/07/2021,Addnl Restrictions Grant,129440,Assets,Finance
1500,Box Property Consultants Ltd,Capital Expenditure,Transformation & Innovation,Cotgrave Phase 2,0387,Legal & Professional Services,08/09/2021,Supplies & Services,131390,Capital Expenditure,Economic Growth
1500,Cloud 9 Event Management Ltd,Assets,Current Assets,Covid19 Funding (Drs),6219,Addnl Restrictions Grant,15/07/2021,Addnl Restrictions Grant,129827,Assets,Finance
1500,Dukeries Textiles & Fancy Goods Limited,Assets,Current Assets,Covid19 Funding (Drs),6219,Addnl Restrictions Grant,01/07/2021,Addnl Restrictions Grant,129439,Assets,Finance
1500,East Midlands Face Painters Ltd,Assets,Current Assets,Covid19 Funding (Drs),6219,Addnl Restrictions Grant,15/07/2021,Addnl Restrictions Grant,129815,Assets,Finance
1500,Emu Events Limited,Assets,Current Assets,Covid19 Funding (Drs),6219,Addnl Restrictions Grant,30/07/2021,Addnl Restrictions Grant,130393,Assets,Finance
1500,Frans Cuts,Assets,Current Assets,Covid19 Funding (Drs),6219,Addnl Restrictions Grant,15/07/2021,Addnl Restrictions Grant,129829,Assets,Finance
1500,Hair By Lyn,Assets,Current Assets,Covid19 Funding (Drs),6219,Addnl Restrictions Grant,30/07/2021,Addnl Restrictions Grant,130377,Assets,Finance
1500,Helen Grant (Severn),Assets,Current Assets,Covid19 Funding (Drs),6219,Addnl Restrictions Grant,30/07/2021,Addnl Restrictions Grant,130381,Assets,Finance
1500,Hfgphotography Ltd,Assets,Current Assets,Covid19 Funding (Drs),6219,Addnl Restrictions Grant,30/07/2021,Addnl Restrictions Grant,130388,Assets,Finance
1500,Hire A Sari,Assets,Current Assets,Covid19 Funding (Drs),6219,Addnl Restrictions Grant,15/07/2021,Addnl Restrictions Grant,129819,Assets,Finance
1500,I.Candy,Assets,Current Assets,Covid19 Funding (Drs),6219,Addnl Restrictions Grant,20/08/2021,Addnl Restrictions Grant,131104,Assets,Finance
1500,Jonathan Bates,Assets,Current Assets,Covid19 Funding (Drs),6219,Addnl Restrictions Grant,30/07/2021,Addnl Restrictions Grant,130385,Assets,Finance
1500,Kerry Kieira-Lowe,Assets,Current Assets,Covid19 Funding (Drs),6219,Addnl Restrictions Grant,30/07/2021,Addnl Restrictions Grant,130386,Assets,Finance
1500,Lashes Of Nottingham,Assets,Current Assets,Covid19 Funding (Drs),6219,Addnl Restrictions Grant,30/07/2021,Addnl Restrictions Grant,130389,Assets,Finance
,,, Level 5 Cost Centre Name,Level 9 Cost Centre Name,Level 9 Cost Centre Code,Level 9 Account Name,Date Paid, Level 5 Account Name,Transaction Reference,Level 3 Cost Centre Name,Department 
1500,Look; Move; Feel Better,Assets,Current Assets,Covid19 Funding (Drs),6219,Addnl Restrictions Grant,15/07/2021,Addnl Restrictions Grant,129818,Assets,Finance
1500,Make Up By Jenni,Assets,Current Assets,Covid19 Funding (Drs),6219,Addnl Restrictions Grant,30/07/2021,Addnl Restrictions Grant,130384,Assets,Finance
1500,Michael Walter John Benson,Assets,Current Assets,Covid19 Funding (Drs),6219,Addnl Restrictions Grant,30/07/2021,Addnl Restrictions Grant,130387,Assets,Finance
1500,Moira Borg Hairstylist,Assets,Current Assets,Covid19 Funding (Drs),6219,Addnl Restrictions Grant,01/07/2021,Addnl Restrictions Grant,129423,Assets,Finance
1500,Nail Envy - By Chloe,Assets,Current Assets,Covid19 Funding (Drs),6219,Addnl Restrictions Grant,01/07/2021,Addnl Restrictions Grant,129428,Assets,Finance
1500,Nottinghamshire County Council,Capital Expenditure,Transformation & Innovation,Bingham Leisure Hub,0314,Legal & Professional Services,19/08/2021,Supplies & Services,130929,Capital Expenditure,Neighbourhoods
1500,O A Nottingham Ltd,Assets,Current Assets,Covid19 Funding (Drs),6219,Addnl Restrictions Grant,20/08/2021,Addnl Restrictions Grant,131105,Assets,Finance
1500,Physioneeds West Bridgford,Assets,Current Assets,Covid19 Funding (Drs),6219,Addnl Restrictions Grant,01/07/2021,Addnl Restrictions Grant,129430,Assets,Finance
1500,Prestige Villas Spain,Assets,Current Assets,Covid19 Funding (Drs),6219,Addnl Restrictions Grant,15/07/2021,Addnl Restrictions Grant,129816,Assets,Finance
1500,Quinns Premier Holiday Homes,Assets,Current Assets,Covid19 Funding (Drs),6219,Addnl Restrictions Grant,15/07/2021,Addnl Restrictions Grant,129822,Assets,Finance
1500,Rgc Functions Ltd,Assets,Current Assets,Covid19 Funding (Drs),6219,Addnl Restrictions Grant,30/07/2021,Addnl Restrictions Grant,130391,Assets,Finance
1500,Sally Stretton Fitness And Well-Being,Assets,Current Assets,Covid19 Funding (Drs),6219,Addnl Restrictions Grant,30/07/2021,Addnl Restrictions Grant,130374,Assets,Finance
1500,Spencers Driving School,Assets,Current Assets,Covid19 Funding (Drs),6219,Addnl Restrictions Grant,15/07/2021,Addnl Restrictions Grant,129824,Assets,Finance
1500,St John'S Chambers,Finance & Corporate Services,Democratic Services,Members Services,1000,Legal & Professional Services,17/08/2021,Supplies & Services,130611,Finance & Corporate Services,Corporate Services
1500,Sunless Secrets Luxurious Spray Tanning,Assets,Current Assets,Covid19 Funding (Drs),6219,Addnl Restrictions Grant,20/08/2021,Addnl Restrictions Grant,131102,Assets,Finance
1500,Tea For Two,Assets,Current Assets,Covid19 Funding (Drs),6219,Addnl Restrictions Grant,30/07/2021,Addnl Restrictions Grant,130395,Assets,Finance
1500,The Coco Collective Ltd,Assets,Current Assets,Covid19 Funding (Drs),6219,Addnl Restrictions Grant,15/07/2021,Addnl Restrictions Grant,129817,Assets,Finance
1500,The Creative Pontoon Ltd,Assets,Current Assets,Covid19 Funding (Drs),6219,Addnl Restrictions Grant,30/07/2021,Addnl Restrictions Grant,130375,Assets,Finance
1500,The Face Queen,Assets,Current Assets,Covid19 Funding (Drs),6219,Addnl Restrictions Grant,30/07/2021,Addnl Restrictions Grant,130382,Assets,Finance
1500,The Fit Out Pontoon Ltd,Assets,Current Assets,Covid19 Funding (Drs),6219,Addnl Restrictions Grant,30/07/2021,Addnl Restrictions Grant,130392,Assets,Finance
1500,The Key Event Hire Limited,Assets,Current Assets,Covid19 Funding (Drs),6219,Addnl Restrictions Grant,15/07/2021,Addnl Restrictions Grant,129825,Assets,Finance
1500,The One Step,Assets,Current Assets,Covid19 Funding (Drs),6219,Addnl Restrictions Grant,15/07/2021,Addnl Restrictions Grant,129823,Assets,Finance
1500,The Roar Movement Ltd,Assets,Current Assets,Covid19 Funding (Drs),6219,Addnl Restrictions Grant,01/07/2021,Addnl Restrictions Grant,129433,Assets,Finance
1500,Toast Films,Assets,Current Assets,Covid19 Funding (Drs),6219,Addnl Restrictions Grant,01/07/2021,Addnl Restrictions Grant,129435,Assets,Finance
1500,Via East Midlands Ltd,Capital Expenditure,Neighbourhoods,Car Park Lighting Upgrade18/19,0323,Contractors-Third Party,08/07/2021,Third Party Payments,129496,Capital Expenditure,Economic Growth
1500,Wendy Jane Kemp,Assets,Current Assets,Covid19 Funding (Drs),6219,Addnl Restrictions Grant,01/07/2021,Addnl Restrictions Grant,129431,Assets,Finance
1498.81,Service Level Management Ltd,Transformation,Bsu,Central Mail,4871,Postages,06/09/2021,Supplies & Services,130752,Transformation,Chief Executive Department 
1491,Print Image Network Ltd,Finance & Corporate Services,Democratic Services,Borough Council Elections,1021,External Printing,19/08/2021,Supplies & Services,130820,Finance & Corporate Services,Chief Executive Department 
1485,Ludlow Hill Mot Centre,Neighbourhoods,Environmental Health,Hackney Carriage/Private Hire,1031,Contractors-Transport,22/09/2021,Transport Related Expenditure,132021,Neighbourhoods,Public Protection
1469.47,Toot Hill School,Neighbourhoods,Leisure Contracts & Car Parks,Leisure Management Contract,1795,Gas,21/07/2021,Premises Related Expenditure,128870,Neighbourhoods,Neighbourhoods
1465,Nuthall Electrical Services Ltd,Communities,Community Development,Gresham,8950,Planned Maintenance Recharge,15/07/2021,Supplies & Services,129384,Communities,Neighbourhoods
1458.17,Nottingham City Council,Neighbourhoods,Waste & Fleet Management,Eastcroft Depot,4002,Olas - Nottm City Council,13/07/2021,Third Party Payments,129670,Neighbourhoods,Neighbourhoods
1443.61,Service Level Management Ltd,Transformation,Bsu,Central Mail,4871,Postages,01/07/2021,Supplies & Services,128179,Transformation,Chief Executive Department 
1434.54,Service Level Management Ltd,Transformation,Bsu,Central Mail,4871,Postages,30/07/2021,Supplies & Services,129517,Transformation,Chief Executive Department 
1430,Henry Riley Llp,Capital Expenditure,Transformation & Innovation,Bingham Leisure Hub,0314,Legal & Professional Services,19/08/2021,Supplies & Services,130626,Capital Expenditure,Neighbourhoods
1423.75,East Midlands Chamber,Transformation,Economic Regeneration,Economic Development,1887,Other Services,29/09/2021,Supplies & Services,132219,Transformation,Economic Growth
1422,Haymarket Media Group,Communities,Planning & Growth,Development Control,1161,Subscriptions,13/09/2021,Supplies & Services,131233,Communities,Planning
1422,Haymarket Media Group,Communities,Planning Policy,Planning Policy Ha,4741,Subscriptions,13/09/2021,Supplies & Services,131233,Communities,Planning
1406.25,R4r - Little Bo-Tique Ltd,Liabilities,Long Term Liabilities,Leasehold Deposits,6623,Balance Sheet Exp In The Year,18/08/2021,Balance Sheet Exp In The Year,130554,Liabilities,Finance
1400,Ann Reeder,Transformation,Human Resources,Corporate Training,4893,Training Expenses,15/07/2021,Employee Related Expenditure,129321,Transformation,Chief Executive Department 
1391.4,Vhs Fletchers Solicitors,Transformation,Legal,Legal Services,4701,Other Income,16/07/2021,Income,129954,Transformation,Chief Executive Department 
1384.75,Park Avenue,Communities,Planning & Growth,Development Control,1161,Agency Staff,03/08/2021,Employee Related Expenditure,130330,Communities,Planning
1380,Park Avenue,Communities,Planning & Growth,Development Control,1161,Agency Staff,17/09/2021,Employee Related Expenditure,131599,Communities,Planning
1372.25,Sand In Your Eye,Transformation,Economic Regeneration,High Streets Safely,1881,Legal & Professional Services,28/07/2021,Supplies & Services,130071,Transformation,Economic Growth
1365.09,Ruddington Village Centre Partnership,Transformation,Economic Regeneration,Economic Development,1887,Legal & Professional Services,13/09/2021,Supplies & Services,131578,Transformation,Economic Growth
1365,William Saunders,Capital Expenditure,Transformation & Innovation,Bingham Leisure Hub,0314,Contractors-Third Party,24/08/2021,Third Party Payments,130756,Capital Expenditure,Neighbourhoods
1363.96,Print Image Network Ltd,Finance & Corporate Services,Democratic Services,Electoral Registration,1026,External Printing,19/08/2021,Supplies & Services,130620,Finance & Corporate Services,Chief Executive Department 
1360.52,Eon,Transformation,Property Services,Unit 10 Moorbridge,4788,Electricity,03/08/2021,Premises Related Expenditure,130034,Transformation,Economic Growth
1358.04,Via East Midlands Ltd,Transformation,Economic Regeneration,High Streets Safely,1881,Legal & Professional Services,17/08/2021,Supplies & Services,130632,Transformation,Economic Growth
1354.63,Service Level Management Ltd,Transformation,Bsu,Central Mail,4871,Postages,30/07/2021,Supplies & Services,129515,Transformation,Chief Executive Department 
,,, Level 5 Cost Centre Name,Level 9 Cost Centre Name,Level 9 Cost Centre Code,Level 9 Account Name,Date Paid, Level 5 Account Name,Transaction Reference,Level 3 Cost Centre Name,Department 
1354.42,Print Image Facilities Llp,Finance & Corporate Services,Democratic Services,Electoral Registration,1026,Postages,08/09/2021,Supplies & Services,131510,Finance & Corporate Services,Chief Executive Department 
1350,Ludlow Hill Mot Centre,Neighbourhoods,Environmental Health,Hackney Carriage/Private Hire,1031,Contractors-Transport,22/09/2021,Transport Related Expenditure,132037,Neighbourhoods,Public Protection
1330.6,Nottingham City Council,Transformation,Human Resources,Human Resources,4709,Agency Staff,19/08/2021,Employee Related Expenditure,130890,Transformation,Chief Executive Department 
1330,Park Avenue,Communities,Planning & Growth,Development Control,1161,Agency Staff,13/07/2021,Employee Related Expenditure,128322,Communities,Planning
1329.03,Service Level Management Ltd,Transformation,Bsu,Central Mail,4871,Postages,01/07/2021,Supplies & Services,128181,Transformation,Chief Executive Department 
1320.83,Service Level Management Ltd,Transformation,Bsu,Central Mail,4871,Postages,30/07/2021,Supplies & Services,129521,Transformation,Chief Executive Department 
1320,Hillcrest Bed & Breakfast,Neighbourhoods,Strategic Housing,Homeless B&B,1110,Housing-Emergency Accommodn,10/08/2021,Supplies & Services,130711,Neighbourhoods,Public Protection
1317.5,Freeth Cartwright Llp,Capital Expenditure,Transformation & Innovation,Cotgrave Phase 2,0387,Legal & Professional Services,24/08/2021,Supplies & Services,130824,Capital Expenditure,Economic Growth
1314.72,Reach Publishing Services Limited,Communities,Planning & Growth,Development Control,1161,Advertising,29/09/2021,Supplies & Services,132257,Communities,Planning
1307.15,Park Avenue,Communities,Planning & Growth,Development Control,1161,Agency Staff,13/07/2021,Employee Related Expenditure,129313,Communities,Planning
1306.7,Park Avenue,Communities,Planning & Growth,Development Control,1161,Agency Staff,13/07/2021,Employee Related Expenditure,128323,Communities,Planning
1306.7,Park Avenue,Communities,Planning & Growth,Development Control,1161,Agency Staff,13/07/2021,Employee Related Expenditure,129320,Communities,Planning
1305.8,Park Avenue,Communities,Planning & Growth,Development Control,1161,Agency Staff,15/07/2021,Employee Related Expenditure,129715,Communities,Planning
1305.35,Park Avenue,Communities,Planning & Growth,Development Control,1161,Agency Staff,21/07/2021,Employee Related Expenditure,129772,Communities,Planning
1304,Park Avenue,Communities,Planning & Growth,Development Control,1161,Agency Staff,17/08/2021,Employee Related Expenditure,130524,Communities,Planning
1297.15,Nottingham City Council,Neighbourhoods,Waste & Fleet Management,Eastcroft Depot,4002,Olas - Nottm City Council,06/09/2021,Third Party Payments,131514,Neighbourhoods,Neighbourhoods
1295,Inform Cpi Ltd,Finance & Corporate Services,Revenues & Benefits,Nndr,1038,Legal & Professional Services,29/09/2021,Supplies & Services,132194,Finance & Corporate Services,Finance
1295,Park Avenue,Communities,Planning & Growth,Development Control,1161,Agency Staff,13/07/2021,Employee Related Expenditure,128321,Communities,Planning
1295,Park Avenue,Communities,Planning & Growth,Development Control,1161,Agency Staff,21/07/2021,Employee Related Expenditure,129769,Communities,Planning
1294.5,Daisy May Galt-Mcloughlin,Transformation,Economic Regeneration,High Streets Safely,1881,Legal & Professional Services,29/09/2021,Supplies & Services,132016,Transformation,Economic Growth
1293.1,Daisy Corporate Services Trading Limited,Finance & Corporate Services,Ict,Telephones,4870,Telephone Rental,16/07/2021,Supplies & Services,129510,Finance & Corporate Services,Corporate Services
1280.74,Castle Water Limited,Communities,Community Development,Gamston Community Hall,8992,Water Charges,10/08/2021,Premises Related Expenditure,130340,Communities,Neighbourhoods
1280,Cctv East Midlands Ltd,Finance & Corporate Services,Ict,It Rechargeable Costs,4722,Cyber Security,13/07/2021,Supplies & Services,129712,Finance & Corporate Services,Corporate Services
1280,Uk Property Rescue Ltd,Neighbourhoods,Environmental Health,Work In Default,1066,Legal & Professional Services,13/09/2021,Supplies & Services,131735,Neighbourhoods,Public Protection
1275,Advanced Business Solutions,Capital Expenditure,Finance & Corporate Services,Applications/Apps,0605,Software,26/07/2021,Supplies & Services,129501,Capital Expenditure,Corporate Services
1275,Advanced Business Solutions,Capital Expenditure,Finance & Corporate Services,Applications/Apps,0605,Software,09/09/2021,Supplies & Services,130612,Capital Expenditure,Corporate Services
1271.93,Arden Winch & Co Ltd,Neighbourhoods,Waste & Fleet Management,Waste Collection,8403,Other Equipment/Materials,06/09/2021,Supplies & Services,130976,Neighbourhoods,Neighbourhoods
1260.72,Arden Winch & Co Ltd,Neighbourhoods,Waste & Fleet Management,Waste Collection,8403,Other Equipment/Materials,30/07/2021,Supplies & Services,127166,Neighbourhoods,Neighbourhoods
1243,Normanton Screenprint,Neighbourhoods,Waste & Fleet Management,Waste Collection,8403,Other Equipment/Materials,19/08/2021,Supplies & Services,130737,Neighbourhoods,Neighbourhoods
1234.39,Maltby & Company,Capital Expenditure,Transformation & Innovation,Colliers Bp Cp Surface/Drain,0210,Contractors-Third Party,04/08/2021,Third Party Payments,129796,Capital Expenditure,Economic Growth
1227.84,Maltby & Company,Capital Expenditure,Communities,Gresham Pavilion,0347,Contractors-Supplies & Servs,13/09/2021,Supplies & Services,131323,Capital Expenditure,Neighbourhoods
1215,Ludlow Hill Mot Centre,Neighbourhoods,Environmental Health,Hackney Carriage/Private Hire,1031,Contractors-Transport,22/09/2021,Transport Related Expenditure,132018,Neighbourhoods,Public Protection
1204.47,Vip System Limited,Neighbourhoods,Environmental Health,Hackney Carriage/Private Hire,1031,Other Equipment/Materials,22/07/2021,Supplies & Services,130040,Neighbourhoods,Public Protection
1200.73,Royal Mail Group Ltd,Transformation,Bsu,Central Mail,4871,Postages,09/09/2021,Supplies & Services,131435,Transformation,Chief Executive Department 
1200,E-Value8 (Uk) Ltd,Capital Expenditure,Neighbourhoods,Disabled Facilities Grant,0332,Grants,06/09/2021,Supplies & Services,131138,Capital Expenditure,Public Protection
1200,Howard Ward Associates Ltd,Communities,Community Development,Lutterell Hall,8990,Contractors-Supplies & Servs,12/08/2021,Supplies & Services,129544,Communities,Neighbourhoods
1200,Nottingham City Council,Neighbourhoods,Waste & Fleet Management,Waste Collection,8403,Hire Of Transport/Plant,06/09/2021,Transport Related Expenditure,131511,Neighbourhoods,Neighbourhoods
1200,Waste Investigations Support Ltd,Neighbourhoods,Environmental Health,Public Health,1127,Legal & Professional Services,15/09/2021,Supplies & Services,131843,Neighbourhoods,Public Protection
1195.2,Reach Publishing Services Limited,Communities,Planning & Growth,Development Control,1161,Advertising,29/09/2021,Supplies & Services,131407,Communities,Planning
1186.9,Reach Publishing Services Limited,Communities,Planning & Growth,Development Control,1161,Advertising,15/07/2021,Supplies & Services,129784,Communities,Planning
1186.47,Print Image Network Ltd,Finance & Corporate Services,Democratic Services,Electoral Registration,1026,External Printing,17/09/2021,Supplies & Services,131498,Finance & Corporate Services,Chief Executive Department 
1177.1,Reach Publishing Services Limited,Communities,Planning & Growth,Development Control,1161,Advertising,15/09/2021,Supplies & Services,131613,Communities,Planning
1173.41,Service Level Management Ltd,Transformation,Bsu,Central Mail,4871,Postages,06/09/2021,Supplies & Services,130750,Transformation,Chief Executive Department 
1164,Hiring Wizard,Neighbourhoods,Strategic Housing,Homeless B&B,1110,Advertising,19/08/2021,Supplies & Services,130616,Neighbourhoods,Public Protection
1150.78,Nottingham City Council,Neighbourhoods,Waste & Fleet Management,Eastcroft Depot,4002,Olas - Nottm City Council,29/09/2021,Third Party Payments,132244,Neighbourhoods,Neighbourhoods
1147.99,Toot Hill School,Neighbourhoods,Leisure Contracts & Car Parks,Leisure Management Contract,1795,Gas,21/07/2021,Premises Related Expenditure,127808,Neighbourhoods,Neighbourhoods
1144.02,Chapman Zoo Consultancy,Neighbourhoods,Environmental Health,Licences - General,1029,Legal & Professional Services,28/07/2021,Supplies & Services,130241,Neighbourhoods,Public Protection
1140,Shawn Ryan,Capital Expenditure,Transformation & Innovation,Cotgrave Phase 2,0387,Legal & Professional Services,02/09/2021,Supplies & Services,131150,Capital Expenditure,Economic Growth
1140,Westcotes House Ltd,Neighbourhoods,Strategic Housing,Homeless B&B,1110,Housing-Emergency Accommodn,06/09/2021,Supplies & Services,131132,Neighbourhoods,Public Protection
1134.54,Service Level Management Ltd,Transformation,Bsu,Central Mail,4871,Postages,30/07/2021,Supplies & Services,129519,Transformation,Chief Executive Department 
,,, Level 5 Cost Centre Name,Level 9 Cost Centre Name,Level 9 Cost Centre Code,Level 9 Account Name,Date Paid, Level 5 Account Name,Transaction Reference,Level 3 Cost Centre Name,Department 
1125,Cipfa Business Limited,Transformation,Property Services,Property Services,4713,Subscriptions,13/09/2021,Supplies & Services,131240,Transformation,Economic Growth
1122.75,Sand In Your Eye,Transformation,Economic Regeneration,High Streets Safely,1881,Legal & Professional Services,02/09/2021,Supplies & Services,131429,Transformation,Economic Growth
1117.95,Daisy Corporate Services Trading Limited,Finance & Corporate Services,Ict,Telephones,4870,Mobiles,22/09/2021,Supplies & Services,131576,Finance & Corporate Services,Corporate Services
1117.5,Inform Cpi Ltd,Finance & Corporate Services,Revenues & Benefits,Nndr,1038,Legal & Professional Services,08/07/2021,Supplies & Services,128755,Finance & Corporate Services,Finance
1106.3,Streetwise Environmental Ltd           1,Communities,Community Development,Lutterell Hall,8990,Responsive Works - Buildings,10/08/2021,Premises Related Expenditure,130248,Communities,Neighbourhoods
1106.26,Daisy Corporate Services Trading Limited,Finance & Corporate Services,Ict,Telephones,4870,Mobiles,19/08/2021,Supplies & Services,130773,Finance & Corporate Services,Corporate Services
1105.07,Daisy Corporate Services Trading Limited,Finance & Corporate Services,Ict,Telephones,4870,Mobiles,16/07/2021,Supplies & Services,129703,Finance & Corporate Services,Corporate Services
1100.16,Reach Publishing Services Limited,Communities,Planning & Growth,Development Control,1161,Advertising,21/07/2021,Supplies & Services,130067,Communities,Planning
1086.55,Reach Publishing Services Limited,Communities,Planning & Growth,Development Control,1161,Advertising,29/09/2021,Supplies & Services,131848,Communities,Planning
1085.49,Nsl Limited,Neighbourhoods,Leisure Contracts & Car Parks,Car Parks,1900,Maintenance Contracts - S&S,21/07/2021,Supplies & Services,129364,Neighbourhoods,Neighbourhoods
1084.26,Edf Energy,Transformation,Property Services,The Point,1886,Electricity,24/08/2021,Premises Related Expenditure,130875,Transformation,Economic Growth
1080,Ludlow Hill Mot Centre,Neighbourhoods,Environmental Health,Hackney Carriage/Private Hire,1031,Contractors-Transport,22/09/2021,Transport Related Expenditure,132038,Neighbourhoods,Public Protection
1075,Atherton Signs And Installations,Neighbourhoods,Leisure Contracts & Car Parks,Leisure Management Contract,1795,Responsive Works - Buildings,22/09/2021,Premises Related Expenditure,132049,Neighbourhoods,Neighbourhoods
1070,Henderson Management,Communities,Community Development,Arts,1550,Projects & Activities,15/09/2021,Supplies & Services,131500,Communities,Neighbourhoods
1066,G2 Recruitment Solutions,Neighbourhoods,Environmental Health,Environmental Health Ha,4743,Agency Staff,20/07/2021,Employee Related Expenditure,129805,Neighbourhoods,Public Protection
1062.8,Mewies Engineering Consultants Ltd,Neighbourhoods,Leisure Contracts & Car Parks,Edwalton Golf Courses,1400,Legal & Professional Services,27/08/2021,Supplies & Services,131262,Neighbourhoods,Neighbourhoods
1058.6,Streetwise Environmental Ltd           1,Communities,Planning & Growth,Development Control,1161,Projects & Activities,22/07/2021,Supplies & Services,129667,Communities,Planning
1045.58,Nsl Limited,Neighbourhoods,Leisure Contracts & Car Parks,Car Parks,1900,Maintenance Contracts - S&S,17/09/2021,Supplies & Services,131437,Neighbourhoods,Neighbourhoods
1038.25,Nsl Limited,Neighbourhoods,Leisure Contracts & Car Parks,Car Parks,1900,Maintenance Contracts - S&S,15/09/2021,Supplies & Services,130757,Neighbourhoods,Neighbourhoods
1034.15,Service Level Management Ltd,Transformation,Bsu,Central Mail,4871,Postages,01/07/2021,Supplies & Services,128175,Transformation,Chief Executive Department 
1030,Macfloor Ltd,Transformation,Customer Services,Customer Services,4807,Planned Maintenance Recharge,08/07/2021,Supplies & Services,129315,Transformation,Corporate Services
1022.78,Toot Hill School,Neighbourhoods,Leisure Contracts & Car Parks,Leisure Management Contract,1795,Gas,21/07/2021,Premises Related Expenditure,127807,Neighbourhoods,Neighbourhoods
1019.57,Toot Hill School,Neighbourhoods,Leisure Contracts & Car Parks,Leisure Management Contract,1795,Gas,21/07/2021,Premises Related Expenditure,127795,Neighbourhoods,Neighbourhoods
1013.8,Severn Trent Water,Neighbourhoods,Strategic Housing,Hostel Hound Lodge,1111,Water Charges,02/09/2021,Premises Related Expenditure,131156,Neighbourhoods,Public Protection
1012,The Copyright Licensing Agency Limited,Finance & Corporate Services,"Performance, Repn & Comms",Performance And Reputation,4710,Legal & Professional Services,08/07/2021,Supplies & Services,129504,Finance & Corporate Services,Corporate Services
1009.61,Nominet Uk,Finance & Corporate Services,Ict,It Rechargeable Costs,4722,Cyber Security,26/07/2021,Supplies & Services,130022,Finance & Corporate Services,Corporate Services
1008.23,Toot Hill School,Neighbourhoods,Leisure Contracts & Car Parks,Leisure Management Contract,1795,Gas,21/07/2021,Premises Related Expenditure,127793,Neighbourhoods,Neighbourhoods
1001.02,Arden Winch & Co Ltd,Neighbourhoods,Waste & Fleet Management,Waste Collection,8403,Other Equipment/Materials,19/08/2021,Supplies & Services,130309,Neighbourhoods,Neighbourhoods
1000,Copper Bingham,Transformation,Economic Regeneration,Economic Development,1887,Legal & Professional Services,04/08/2021,Supplies & Services,129787,Transformation,Economic Growth
1000,Derby Face And Body Painting,Transformation,Economic Regeneration,High Streets Safely,1881,Legal & Professional Services,02/09/2021,Supplies & Services,131338,Transformation,Economic Growth
1000,Midlands Rural Housing,Neighbourhoods,Strategic Housing,Housing Strategy,1146,Grants,15/09/2021,Supplies & Services,131728,Neighbourhoods,Public Protection
1000,Obsessions,Transformation,Economic Regeneration,Economic Development,1887,Legal & Professional Services,15/09/2021,Supplies & Services,131730,Transformation,Economic Growth
1000,Rural Retailers Ltd,Transformation,Economic Regeneration,Bingham Market Stalls,1880,Legal & Professional Services,30/07/2021,Supplies & Services,130315,Transformation,Economic Growth
1000,Soothe Limited,Transformation,Economic Regeneration,Economic Development,1887,Legal & Professional Services,02/09/2021,Supplies & Services,131236,Transformation,Economic Growth
996,Reach Publishing Services Limited,Communities,Planning & Growth,Development Control,1161,Advertising,17/08/2021,Supplies & Services,130821,Communities,Planning
984,Henderson Management,Communities,Community Development,Arts,1550,Projects & Activities,15/09/2021,Supplies & Services,128286,Communities,Neighbourhoods
979.67,Maltby & Company,Capital Expenditure,Communities,Gresham Pavilion,0347,Contractors-Supplies & Servs,13/09/2021,Supplies & Services,131325,Capital Expenditure,Neighbourhoods
963.89,Service Level Management Ltd,Transformation,Bsu,Central Mail,4871,Postages,30/07/2021,Supplies & Services,129520,Transformation,Chief Executive Department 
961.1,The South Wolds Academy And Sixth Form,Neighbourhoods,Leisure Contracts & Car Parks,Leisure Management Contract,1795,Water Charges,29/09/2021,Premises Related Expenditure,131834,Neighbourhoods,Neighbourhoods
958.65,Reach Publishing Services Limited,Communities,Planning & Growth,Development Control,1161,Advertising,28/07/2021,Supplies & Services,130249,Communities,Planning
950,Euromunicipal Ltd,Neighbourhoods,Waste & Fleet Management,Waste Collection,8403,Hire Of Transport/Plant,24/08/2021,Transport Related Expenditure,130905,Neighbourhoods,Neighbourhoods
950,Idox Software Limited,Finance & Corporate Services,Ict,It Rechargeable Costs,4722,Legal & Professional Services,27/08/2021,Supplies & Services,130901,Finance & Corporate Services,Corporate Services
948.41,Toot Hill School,Neighbourhoods,Leisure Contracts & Car Parks,Leisure Management Contract,1795,Gas,21/07/2021,Premises Related Expenditure,127797,Neighbourhoods,Neighbourhoods
946.85,"Meet, Greet And Eat",Communities,Community Development,Health Development,1058,Grants,08/09/2021,Supplies & Services,129967,Communities,Neighbourhoods
945,The Waterside,Transformation,Economic Regeneration,Economic Development,1887,Legal & Professional Services,28/07/2021,Supplies & Services,130051,Transformation,Economic Growth
943.81,Castle Water Limited,Neighbourhoods,Leisure Contracts & Car Parks,Car Parks,1900,Water Charges,08/09/2021,Premises Related Expenditure,131395,Neighbourhoods,Neighbourhoods
943.81,Castle Water Limited,Neighbourhoods,Leisure Contracts & Car Parks,Car Parks,1900,Water Charges,08/09/2021,Premises Related Expenditure,131400,Neighbourhoods,Neighbourhoods
943.81,Castle Water Limited,Neighbourhoods,Leisure Contracts & Car Parks,Car Parks,1900,Water Charges,08/09/2021,Premises Related Expenditure,131404,Neighbourhoods,Neighbourhoods
930,Morris Vermaport Ltd,Transformation,Economic Regeneration,Cotgrave Hub/Msc - Main Bldg,1876,Responsive Works - Buildings,16/07/2021,Premises Related Expenditure,129538,Transformation,Economic Growth
928.83,Eon,Transformation,Property Services,Unit 10 Moorbridge,4788,Electricity,12/08/2021,Premises Related Expenditure,130723,Transformation,Economic Growth
,,, Level 5 Cost Centre Name,Level 9 Cost Centre Name,Level 9 Cost Centre Code,Level 9 Account Name,Date Paid, Level 5 Account Name,Transaction Reference,Level 3 Cost Centre Name,Department 
920.05,Toot Hill School,Neighbourhoods,Leisure Contracts & Car Parks,Leisure Management Contract,1795,Gas,21/07/2021,Premises Related Expenditure,127791,Neighbourhoods,Neighbourhoods
910,The Bottle Top,Transformation,Economic Regeneration,Economic Development,1887,Legal & Professional Services,12/08/2021,Supplies & Services,130547,Transformation,Economic Growth
900,Hillcrest Bed & Breakfast,Neighbourhoods,Strategic Housing,Homeless B&B,1110,Housing-Emergency Accommodn,13/09/2021,Supplies & Services,131497,Neighbourhoods,Public Protection
900,Ludlow Hill Mot Centre,Neighbourhoods,Environmental Health,Hackney Carriage/Private Hire,1031,Contractors-Transport,22/09/2021,Transport Related Expenditure,132020,Neighbourhoods,Public Protection
895,Arc Industrial Cladding & Roofing Ltd,Transformation,Property Services,"Colliers, Cotgrave",1898,Planned Maintenance Recharge,01/07/2021,Supplies & Services,128834,Transformation,Economic Growth
888.72,Reach Publishing Services Limited,Communities,Planning & Growth,Development Control,1161,Advertising,17/08/2021,Supplies & Services,130624,Communities,Planning
850,Professional Sportsturf Design (Nw) Limited,Capital Expenditure,Communities,Gresham Pitches,0280,Legal & Professional Services,08/09/2021,Supplies & Services,131352,Capital Expenditure,Economic Growth
846.6,Reach Publishing Services Limited,Communities,Planning & Growth,Development Control,1161,Advertising,08/09/2021,Supplies & Services,131268,Communities,Planning
845,Print Image Network Ltd,Finance & Corporate Services,Democratic Services,Borough Council Elections,1021,External Printing,19/08/2021,Supplies & Services,130819,Finance & Corporate Services,Chief Executive Department 
845,Weightmans Llp,Neighbourhoods,Leisure Contracts & Car Parks,Leisure Management Contract,1795,Legal & Professional Services,19/08/2021,Supplies & Services,130555,Neighbourhoods,Neighbourhoods
840,Mewies Engineering Consultants Ltd,Neighbourhoods,Leisure Contracts & Car Parks,Edwalton Golf Courses,1400,Legal & Professional Services,25/08/2021,Supplies & Services,130622,Neighbourhoods,Neighbourhoods
840,Radcliffe On Trent Parish Council,Finance & Corporate Services,Democratic Services,Members Services,1000,Grants,06/09/2021,Supplies & Services,131311,Finance & Corporate Services,Corporate Services
832,Capita Software Services,Finance & Corporate Services,Ict,It Rechargeable Costs,4722,Software,17/08/2021,Supplies & Services,130710,Finance & Corporate Services,Corporate Services
819.49,Toot Hill School,Neighbourhoods,Leisure Contracts & Car Parks,Leisure Management Contract,1795,Gas,21/07/2021,Premises Related Expenditure,127806,Neighbourhoods,Neighbourhoods
816.75,The South Wolds Academy And Sixth Form,Neighbourhoods,Leisure Contracts & Car Parks,Leisure Management Contract,1795,Water Charges,30/07/2021,Premises Related Expenditure,129963,Neighbourhoods,Neighbourhoods
800,Gna Surveyors Limited,Communities,Community Development,Lutterell Hall,8990,Responsive Works - Buildings,16/07/2021,Premises Related Expenditure,129518,Communities,Neighbourhoods
800,Rural Retailers Ltd,Transformation,Economic Regeneration,Bingham Market Stalls,1880,Legal & Professional Services,02/09/2021,Supplies & Services,131353,Transformation,Economic Growth
780,Morris Vermaport Ltd,Transformation,Economic Regeneration,Cotgrave Hub/Msc - Main Bldg,1876,Responsive Works - Buildings,16/07/2021,Premises Related Expenditure,129537,Transformation,Economic Growth
772.32,Castle Water Limited,Communities,Community Development,Sir Julien Cahn Pavilion,8993,Water Charges,10/08/2021,Premises Related Expenditure,130338,Communities,Neighbourhoods
770,Drainscan,Capital Expenditure,Communities,Lutterell Hall Enhancements,0326,Responsive Works - Buildings,10/08/2021,Premises Related Expenditure,130036,Capital Expenditure,Economic Growth
770,Hopkins Solicitors,Capital Expenditure,Transformation & Innovation,Cotgrave Phase 2,0387,Legal & Professional Services,15/09/2021,Supplies & Services,131627,Capital Expenditure,Economic Growth
764.25,Via East Midlands Ltd,Capital Expenditure,Transformation & Innovation,Bingham Leisure Hub,0314,Contractors-Third Party,22/09/2021,Third Party Payments,131838,Capital Expenditure,Neighbourhoods
760.65,Royal Mail Group Ltd,Finance & Corporate Services,Democratic Services,Borough Council Elections,1021,Postages,05/08/2021,Supplies & Services,130319,Finance & Corporate Services,Chief Executive Department 
758.33,L S Recycling,Neighbourhoods,Waste & Fleet Management,Glass Recycling & Bring Sites,8407,Other Services,13/07/2021,Supplies & Services,129644,Neighbourhoods,Neighbourhoods
758.33,L S Recycling,Neighbourhoods,Waste & Fleet Management,Glass Recycling & Bring Sites,8407,Other Services,12/08/2021,Supplies & Services,130772,Neighbourhoods,Neighbourhoods
758.33,L S Recycling,Neighbourhoods,Waste & Fleet Management,Glass Recycling & Bring Sites,8407,Other Services,08/09/2021,Supplies & Services,131588,Neighbourhoods,Neighbourhoods
750,Alexander Perrin,Communities,Community Development,Arts,1550,Projects & Activities,08/09/2021,Supplies & Services,131600,Communities,Neighbourhoods
750,Alexander Perrin,Transformation,Economic Regeneration,High Streets Safely,1881,Legal & Professional Services,13/09/2021,Supplies & Services,131727,Transformation,Economic Growth
750,Aspire Fine Jewellery Limited,Assets,Current Assets,Covid19 Funding (Drs),6219,Addnl Restrictions Grant,30/07/2021,Addnl Restrictions Grant,130394,Assets,Finance
750,Bmc Car Sales Ltd,Assets,Current Assets,Covid19 Funding (Drs),6219,Addnl Restrictions Grant,01/07/2021,Addnl Restrictions Grant,129426,Assets,Finance
750,Capitum Co-Living Ltd T/A 'River Rooms',Assets,Current Assets,Covid19 Funding (Drs),6219,Addnl Restrictions Grant,30/07/2021,Addnl Restrictions Grant,130390,Assets,Finance
750,Cathy Anne Graham,Assets,Current Assets,Covid19 Funding (Drs),6219,Addnl Restrictions Grant,30/07/2021,Addnl Restrictions Grant,130380,Assets,Finance
750,Clements Multisport Coaching,Assets,Current Assets,Covid19 Funding (Drs),6219,Addnl Restrictions Grant,20/08/2021,Addnl Restrictions Grant,131103,Assets,Finance
750,Doeray Media Ltd,Assets,Current Assets,Covid19 Funding (Drs),6219,Addnl Restrictions Grant,01/07/2021,Addnl Restrictions Grant,129427,Assets,Finance
750,E-Dna Solutions Ltd,Assets,Current Assets,Covid19 Funding (Drs),6219,Addnl Restrictions Grant,20/08/2021,Addnl Restrictions Grant,131106,Assets,Finance
750,Glebefoil Ltd T/A Lincolnshire Marine Serv,Assets,Current Assets,Covid19 Funding (Drs),6219,Addnl Restrictions Grant,15/07/2021,Addnl Restrictions Grant,129831,Assets,Finance
750,Graphic Change,Assets,Current Assets,Covid19 Funding (Drs),6219,Addnl Restrictions Grant,01/07/2021,Addnl Restrictions Grant,129438,Assets,Finance
750,Insideout Media & Print Ltd,Assets,Current Assets,Covid19 Funding (Drs),6219,Addnl Restrictions Grant,01/07/2021,Addnl Restrictions Grant,129425,Assets,Finance
750,Jo-Anne Kelleher,Assets,Current Assets,Covid19 Funding (Drs),6219,Addnl Restrictions Grant,30/07/2021,Addnl Restrictions Grant,130378,Assets,Finance
750,Max Business Solutions Limited,Assets,Current Assets,Covid19 Funding (Drs),6219,Addnl Restrictions Grant,15/07/2021,Addnl Restrictions Grant,129826,Assets,Finance
750,Nottingham Specialist Transport Ltd,Assets,Current Assets,Covid19 Funding (Drs),6219,Addnl Restrictions Grant,15/07/2021,Addnl Restrictions Grant,129820,Assets,Finance
750,Npg Chauffeuring,Assets,Current Assets,Covid19 Funding (Drs),6219,Addnl Restrictions Grant,01/07/2021,Addnl Restrictions Grant,129432,Assets,Finance
750,Place Recruitment,Assets,Current Assets,Covid19 Funding (Drs),6219,Addnl Restrictions Grant,01/07/2021,Addnl Restrictions Grant,129434,Assets,Finance
750,Rtriibe,Assets,Current Assets,Covid19 Funding (Drs),6219,Addnl Restrictions Grant,15/07/2021,Addnl Restrictions Grant,129830,Assets,Finance
750,Samaira Ghani Ltd,Assets,Current Assets,Covid19 Funding (Drs),6219,Addnl Restrictions Grant,20/08/2021,Addnl Restrictions Grant,131101,Assets,Finance
750,Taxi Business,Assets,Current Assets,Covid19 Funding (Drs),6219,Addnl Restrictions Grant,01/07/2021,Addnl Restrictions Grant,129424,Assets,Finance
750,Vb Marketing Ltd,Assets,Current Assets,Covid19 Funding (Drs),6219,Addnl Restrictions Grant,30/07/2021,Addnl Restrictions Grant,130383,Assets,Finance
741.52,Emec Ecology,Communities,Community Development,Rushcliffe Country Park,1375,Other Equipment/Materials,08/07/2021,Supplies & Services,128830,Communities,Neighbourhoods
736.8,Lyreco,Communities,Community Development,Facilities Team,4714,Cleaning Equipment/Materials,22/07/2021,Supplies & Services,129499,Communities,Neighbourhoods
735,Civica Uk Ltd,Finance & Corporate Services,Ict,It Rechargeable Costs,4722,Maintenance Contracts - S&S,13/09/2021,Supplies & Services,131008,Finance & Corporate Services,Corporate Services
,,, Level 5 Cost Centre Name,Level 9 Cost Centre Name,Level 9 Cost Centre Code,Level 9 Account Name,Date Paid, Level 5 Account Name,Transaction Reference,Level 3 Cost Centre Name,Department 
727.75,G2 Recruitment Solutions,Neighbourhoods,Environmental Health,Environmental Health Ha,4743,Agency Staff,19/08/2021,Employee Related Expenditure,130832,Neighbourhoods,Public Protection
725,Chewings Services,Capital Expenditure,Communities,Gresham Pavilion,0347,Contractors-Supplies & Servs,19/08/2021,Supplies & Services,130760,Capital Expenditure,Neighbourhoods
720.73,Toot Hill School,Neighbourhoods,Leisure Contracts & Car Parks,Leisure Management Contract,1795,Gas,21/07/2021,Premises Related Expenditure,127799,Neighbourhoods,Neighbourhoods
720,Pure Washrooms Ltd,Communities,Community Development,Facilities Team,4714,Other Equipment/Materials,15/07/2021,Supplies & Services,129564,Communities,Neighbourhoods
719.16,Cotgrave Town Council,Transformation,Economic Regeneration,Cotgrave Precinct,1885,Grounds Maintenance,10/08/2021,Premises Related Expenditure,130552,Transformation,Economic Growth
715.97,Toot Hill School,Neighbourhoods,Leisure Contracts & Car Parks,Leisure Management Contract,1795,Gas,21/07/2021,Premises Related Expenditure,127805,Neighbourhoods,Neighbourhoods
713.56,Edf Energy,Communities,Community Development,Rushcliffe Country Park,1375,Electricity,20/09/2021,Premises Related Expenditure,130874,Communities,Neighbourhoods
712.2,Toot Hill School,Neighbourhoods,Leisure Contracts & Car Parks,Leisure Management Contract,1795,Gas,21/07/2021,Premises Related Expenditure,127803,Neighbourhoods,Neighbourhoods
707.59,Toot Hill School,Neighbourhoods,Leisure Contracts & Car Parks,Leisure Management Contract,1795,Gas,21/07/2021,Premises Related Expenditure,127801,Neighbourhoods,Neighbourhoods
703.17,Print Image Network Ltd,Finance & Corporate Services,Democratic Services,Electoral Registration,1026,External Printing,28/07/2021,Supplies & Services,129685,Finance & Corporate Services,Chief Executive Department 
703.17,Service Level Management Ltd,Transformation,Bsu,Central Mail,4871,Postages,06/09/2021,Supplies & Services,130751,Transformation,Chief Executive Department 
700,Ann Reeder,Transformation,Human Resources,Corporate Training,4893,Training Expenses,16/07/2021,Employee Related Expenditure,129319,Transformation,Chief Executive Department 
700,Arc Industrial Cladding & Roofing Ltd,Transformation,Economic Regeneration,Bingham Market Stalls,1880,Responsive Works - Buildings,15/07/2021,Premises Related Expenditure,129580,Transformation,Economic Growth
700,Licence Check Ltd,Neighbourhoods,Environmental Health,Hackney Carriage/Private Hire,1031,Other Equipment/Materials,28/07/2021,Supplies & Services,130172,Neighbourhoods,Public Protection
698.26,Delta Communications (Is) Ltd,Capital Expenditure,Neighbourhoods,Disabled Facilities Grant,0332,Grants,01/07/2021,Supplies & Services,128342,Capital Expenditure,Public Protection
697,G2 Recruitment Solutions,Neighbourhoods,Environmental Health,Environmental Health Ha,4743,Agency Staff,28/07/2021,Employee Related Expenditure,130107,Neighbourhoods,Public Protection
693.41,Print Image Network Ltd,Finance & Corporate Services,Democratic Services,Electoral Registration,1026,External Printing,17/09/2021,Supplies & Services,131618,Finance & Corporate Services,Chief Executive Department 
690,Streetwise Environmental Ltd           1,Neighbourhoods,Leisure Contracts & Car Parks,Edwalton Golf Courses,1400,Responsive Works - Buildings,19/08/2021,Premises Related Expenditure,130921,Neighbourhoods,Neighbourhoods
688.1,The South Wolds Academy And Sixth Form,Neighbourhoods,Leisure Contracts & Car Parks,Leisure Management Contract,1795,Water Charges,30/07/2021,Premises Related Expenditure,129964,Neighbourhoods,Neighbourhoods
670.38,Arden Winch & Co Ltd,Neighbourhoods,Waste & Fleet Management,Waste Collection,8403,Other Equipment/Materials,15/07/2021,Supplies & Services,129371,Neighbourhoods,Neighbourhoods
656.7,Limesquare Vehicle Rental Ltd,Neighbourhoods,Waste & Fleet Management,Waste Collection,8403,Hire Of Transport/Plant,08/09/2021,Transport Related Expenditure,131411,Neighbourhoods,Neighbourhoods
652.16,Carlton Design & Fabrication,Capital Expenditure,Neighbourhoods,Disabled Facilities Grant,0332,Grants,13/07/2021,Supplies & Services,129541,Capital Expenditure,Public Protection
650,Hex Productions,Finance & Corporate Services,"Performance, Repn & Comms",Performance And Reputation,4710,Legal & Professional Services,13/07/2021,Supplies & Services,129383,Finance & Corporate Services,Corporate Services
650,Hex Productions,Finance & Corporate Services,"Performance, Repn & Comms",Performance And Reputation,4710,Legal & Professional Services,17/08/2021,Supplies & Services,130536,Finance & Corporate Services,Corporate Services
650,Hex Productions,Finance & Corporate Services,"Performance, Repn & Comms",Performance And Reputation,4710,Legal & Professional Services,08/09/2021,Supplies & Services,131417,Finance & Corporate Services,Corporate Services
650,Whitecroft Lighting Ltd,Transformation,Property Services,Arena Civic Centre,4718,Planned Maintenance Recharge,13/09/2021,Supplies & Services,131243,Transformation,Economic Growth
645.6,Thorn Baker Limited,Neighbourhoods,Waste & Fleet Management,Waste Collection,8403,Agency Staff,19/08/2021,Employee Related Expenditure,129699,Neighbourhoods,Neighbourhoods
645.6,Thorn Baker Limited,Neighbourhoods,Waste & Fleet Management,Waste Collection,8403,Agency Staff,19/08/2021,Employee Related Expenditure,130016,Neighbourhoods,Neighbourhoods
645.6,Thorn Baker Limited,Neighbourhoods,Waste & Fleet Management,Waste Collection,8403,Agency Staff,19/08/2021,Employee Related Expenditure,130141,Neighbourhoods,Neighbourhoods
645.6,Thorn Baker Limited,Neighbourhoods,Waste & Fleet Management,Waste Collection,8403,Agency Staff,19/08/2021,Employee Related Expenditure,130548,Neighbourhoods,Neighbourhoods
645.6,Thorn Baker Limited,Neighbourhoods,Waste & Fleet Management,Waste Collection,8403,Agency Staff,19/08/2021,Employee Related Expenditure,130755,Neighbourhoods,Neighbourhoods
645.6,Thorn Baker Limited,Neighbourhoods,Waste & Fleet Management,Waste Collection,8403,Agency Staff,19/08/2021,Employee Related Expenditure,130896,Neighbourhoods,Neighbourhoods
645.6,Thorn Baker Limited,Neighbourhoods,Waste & Fleet Management,Waste Collection,8403,Agency Staff,06/09/2021,Employee Related Expenditure,131244,Neighbourhoods,Neighbourhoods
643.16,North West Leicestershire District Council,Transformation,Economic Regeneration,Economic Development,1887,Feasibility Study,31/08/2021,Supplies & Services,131310,Transformation,Economic Growth
639.39,Eon,Transformation,Property Services,New Offices - Cotgrave,4798,Electricity,12/08/2021,Premises Related Expenditure,130769,Transformation,Economic Growth
637.5,Advanced Business Solutions,Capital Expenditure,Finance & Corporate Services,Applications/Apps,0605,Software,09/09/2021,Supplies & Services,130979,Capital Expenditure,Corporate Services
632,Medigold Health Consultancy Ltd,Transformation,Human Resources,Human Resources,4709,Occupational Health,16/07/2021,Employee Related Expenditure,129668,Transformation,Chief Executive Department 
632,Medigold Health Consultancy Ltd,Transformation,Human Resources,Human Resources,4709,Occupational Health,16/07/2021,Employee Related Expenditure,129506,Transformation,Chief Executive Department 
630.5,Eon,Transformation,Economic Regeneration,Cotgrave Hub/Msc -Shared Entry,1878,Electricity,29/09/2021,Premises Related Expenditure,131594,Transformation,Economic Growth
630,Browne Jacobson,Transformation,Property Services,Land At Chapel Lane,4799,Legal & Professional Services,28/07/2021,Supplies & Services,129532,Transformation,Economic Growth
627,Terberg Matec Uk Limited,Capital Expenditure,Neighbourhoods,Vehicle Replacement,0680,Vehicles Acquisition,06/09/2021,Supplies & Services,131201,Capital Expenditure,Neighbourhoods
627,Terberg Matec Uk Limited,Neighbourhoods,Waste & Fleet Management,Fleet,8600,Licences - General,06/09/2021,Transport Related Expenditure,131198,Neighbourhoods,Neighbourhoods
620.88,Edf Energy,Neighbourhoods,Strategic Housing,Hostel Hound Lodge,1111,Electricity,21/09/2021,Premises Related Expenditure,132013,Neighbourhoods,Public Protection
608.5,Electoral Reform Services,Finance & Corporate Services,Democratic Services,Electoral Registration,1026,External Printing,15/07/2021,Supplies & Services,129372,Finance & Corporate Services,Chief Executive Department 
600,A R Signs Ltd,Finance & Corporate Services,"Performance, Repn & Comms",Performance And Reputation,4710,External Printing,19/08/2021,Supplies & Services,130328,Finance & Corporate Services,Corporate Services
600,Inform Cpi Ltd,Finance & Corporate Services,Revenues & Benefits,Nndr,1038,Legal & Professional Services,15/09/2021,Supplies & Services,131723,Finance & Corporate Services,Finance
600,Wilford Lane Garage & Autocentre,Neighbourhoods,Environmental Health,Hackney Carriage/Private Hire,1031,Contractors-Transport,24/08/2021,Transport Related Expenditure,131120,Neighbourhoods,Public Protection
600,Wilford Lane Garage & Autocentre,Neighbourhoods,Environmental Health,Hackney Carriage/Private Hire,1031,Contractors-Transport,08/09/2021,Transport Related Expenditure,131350,Neighbourhoods,Public Protection
595.2,Quantum Fire & Security Ltd,Transformation,Property Services,The Point,1886,Responsive Works - Buildings,30/07/2021,Premises Related Expenditure,129992,Transformation,Economic Growth
,,, Level 5 Cost Centre Name,Level 9 Cost Centre Name,Level 9 Cost Centre Code,Level 9 Account Name,Date Paid, Level 5 Account Name,Transaction Reference,Level 3 Cost Centre Name,Department 
595,Greenhatch Group Ltd,Communities,Planning & Growth,Development Control,1161,Legal & Professional Services,12/08/2021,Supplies & Services,130237,Communities,Planning
585.15,Haven Power Limited,Transformation,Property Services,Castle Donington,1863,Electricity,24/08/2021,Premises Related Expenditure,130621,Transformation,Economic Growth
585,South Notts Fabrications Ltd,Communities,Community Development,Bridgford Park,8927,Contractors-Supplies & Servs,19/08/2021,Supplies & Services,130741,Communities,Neighbourhoods
581.35,Haven Power Limited,Transformation,Property Services,Castle Donington,1863,Electricity,17/09/2021,Premises Related Expenditure,131485,Transformation,Economic Growth
580,Euromunicipal Ltd,Neighbourhoods,Waste & Fleet Management,Waste Collection,8403,Hire Of Transport/Plant,28/07/2021,Transport Related Expenditure,130014,Neighbourhoods,Neighbourhoods
571.02,Arden Winch & Co Ltd,Neighbourhoods,Waste & Fleet Management,Waste Collection,8403,Other Equipment/Materials,19/08/2021,Supplies & Services,130526,Neighbourhoods,Neighbourhoods
570,Fred Brown Car Repairs Limited,Neighbourhoods,Environmental Health,Hackney Carriage/Private Hire,1031,Contractors-Transport,08/09/2021,Transport Related Expenditure,131386,Neighbourhoods,Public Protection
563.12,Bt Telephone Payment Centre,Finance & Corporate Services,Ict,Telephones,4870,Telephone Rental,16/07/2021,Supplies & Services,129648,Finance & Corporate Services,Corporate Services
555.48,Reach Publishing Services Limited,Communities,Planning & Growth,Conservation,1171,Advertising,17/08/2021,Supplies & Services,130624,Communities,Planning
541.95,Joe'S (Uk) Ltd,Transformation,Property Services,The Point,1886,Responsive Works - Buildings,24/08/2021,Premises Related Expenditure,131012,Transformation,Economic Growth
535.33,Eon,Transformation,Property Services,New Offices - Cotgrave,4798,Electricity,17/09/2021,Premises Related Expenditure,131593,Transformation,Economic Growth
534.7,Sse Payment Centre,Transformation,Property Services,The Point,1886,Electricity,17/08/2021,Premises Related Expenditure,130566,Transformation,Economic Growth
524.4,Bt Telephone Payment Centre,Finance & Corporate Services,Ict,Telephones,4870,Telephone Rental,12/08/2021,Supplies & Services,130623,Finance & Corporate Services,Corporate Services
522.69,Royal Mail Group Ltd,Transformation,Bsu,Central Mail,4871,Postages,05/08/2021,Supplies & Services,130319,Transformation,Chief Executive Department 
512.5,G2 Recruitment Solutions,Neighbourhoods,Environmental Health,Environmental Health Ha,4743,Agency Staff,25/08/2021,Employee Related Expenditure,131005,Neighbourhoods,Public Protection
510.3,Egbert H Taylor & Co Ltd,Neighbourhoods,Waste & Fleet Management,Waste Collection,8403,Other Equipment/Materials,27/08/2021,Supplies & Services,130830,Neighbourhoods,Neighbourhoods
503.12,Idox Software Limited,Finance & Corporate Services,Ict,It Rechargeable Costs,4722,Maintenance Contracts - S&S,29/09/2021,Supplies & Services,131614,Finance & Corporate Services,Corporate Services
501.86,Eon,Transformation,Property Services,New Offices - Cotgrave,4798,Electricity,15/07/2021,Premises Related Expenditure,129673,Transformation,Economic Growth
470,Access Doors Ltd,Communities,Community Development,West Park,8994,Service Maintenance Contracts,02/09/2021,Premises Related Expenditure,131267,Communities,Neighbourhoods
450,Blade Runners Commercial Ltd,Transformation,Property Services,The Point,1886,Contract Cleaning,12/08/2021,Premises Related Expenditure,130317,Transformation,Economic Growth
401.3,Ppl Prs Ltd,Communities,Community Development,Sir Julien Cahn Pavilion,8993,Licences,09/09/2021,Supplies & Services,131385,Communities,Neighbourhoods
378.5,Clearwater Technology Ltd,Communities,Community Development,Gresham,8950,Service Maintenance Contracts,13/09/2021,Premises Related Expenditure,130706,Communities,Neighbourhoods
347.98,Ppl Prs Ltd,Communities,Community Development,West Park,8994,Licences,09/09/2021,Supplies & Services,131385,Communities,Neighbourhoods
345,Access Doors Ltd,Communities,Community Development,Rushcliffe Country Park,1375,Service Maintenance Contracts,02/09/2021,Premises Related Expenditure,131267,Communities,Neighbourhoods
328.68,Reach Publishing Services Limited,Communities,Planning & Growth,Conservation,1171,Advertising,29/09/2021,Supplies & Services,132257,Communities,Planning
270,Access Doors Ltd,Communities,Community Development,Gresham,8950,Service Maintenance Contracts,02/09/2021,Premises Related Expenditure,131267,Communities,Neighbourhoods
263,Clearwater Technology Ltd,Communities,Community Development,Gresham,8950,Service Maintenance Contracts,13/09/2021,Premises Related Expenditure,130705,Communities,Neighbourhoods
244.44,Reach Publishing Services Limited,Communities,Planning & Growth,Conservation,1171,Advertising,21/07/2021,Supplies & Services,130067,Communities,Planning
212.5,Clearwater Technology Ltd,Communities,Community Development,Alford Road,8940,Service Maintenance Contracts,13/09/2021,Premises Related Expenditure,130705,Communities,Neighbourhoods
206.25,Clearwater Technology Ltd,Transformation,Property Services,Arena Civic Centre,4718,Service Maintenance Contracts,13/09/2021,Premises Related Expenditure,130705,Transformation,Economic Growth
166.74,Acs Systems Uk Ltd T/A Acs Office Solutions,Capital Expenditure,Finance & Corporate Services,Ict Replacement Programme,0592,Computer Hardware,28/07/2021,Supplies & Services,129953,Capital Expenditure,Corporate Services
165,Clearwater Technology Ltd,Communities,Community Development,Rushcliffe Country Park,1375,Service Maintenance Contracts,13/09/2021,Premises Related Expenditure,130705,Communities,Neighbourhoods
165,Clearwater Technology Ltd,Communities,Community Development,West Park,8994,Service Maintenance Contracts,13/09/2021,Premises Related Expenditure,130705,Communities,Neighbourhoods
165,Clearwater Technology Ltd,Neighbourhoods,Strategic Housing,Hostel Hound Lodge,1111,Service Maintenance Contracts,13/09/2021,Premises Related Expenditure,130705,Neighbourhoods,Public Protection
145,Access Doors Ltd,Communities,Community Development,Alford Road,8940,Service Maintenance Contracts,02/09/2021,Premises Related Expenditure,131267,Communities,Neighbourhoods
143.64,Reach Publishing Services Limited,Communities,Planning & Growth,Conservation,1171,Advertising,08/07/2021,Supplies & Services,129513,Communities,Planning
136.95,Reach Publishing Services Limited,Communities,Planning & Growth,Conservation,1171,Advertising,28/07/2021,Supplies & Services,130249,Communities,Planning
129.81,Acs Systems Uk Ltd T/A Acs Office Solutions,Finance & Corporate Services,Ict,It Rechargeable Costs,4722,Consumables,28/07/2021,Supplies & Services,129953,Finance & Corporate Services,Corporate Services
125,Blade Runners Commercial Ltd,Transformation,Economic Regeneration,Cotgrave Hub/Msc - Main Bldg,1876,Contract Cleaning,12/08/2021,Premises Related Expenditure,130317,Transformation,Economic Growth
120,Blade Runners Commercial Ltd,Transformation,Property Services,Bridgford Hall,1883,Contract Cleaning,12/08/2021,Premises Related Expenditure,130317,Transformation,Economic Growth
117.7,Reach Publishing Services Limited,Communities,Planning & Growth,Conservation,1171,Advertising,15/09/2021,Supplies & Services,131613,Communities,Planning
110,Access Doors Ltd,Transformation,Property Services,New Offices - Cotgrave,4798,Service Maintenance Contracts,02/09/2021,Premises Related Expenditure,131267,Transformation,Economic Growth
110,Clearwater Technology Ltd,Communities,Community Development,Sir Julien Cahn Pavilion,8993,Service Maintenance Contracts,13/09/2021,Premises Related Expenditure,130705,Communities,Neighbourhoods
108.65,Reach Publishing Services Limited,Communities,Planning & Growth,Conservation,1171,Advertising,29/09/2021,Supplies & Services,131848,Communities,Planning
107.9,Reach Publishing Services Limited,Communities,Planning & Growth,Conservation,1171,Advertising,15/07/2021,Supplies & Services,129784,Communities,Planning
100,Access Doors Ltd,Transformation,Property Services,The Point,1886,Service Maintenance Contracts,02/09/2021,Premises Related Expenditure,131267,Transformation,Economic Growth
96.25,Clearwater Technology Ltd,Communities,Community Development,Gamston Community Hall,8992,Service Maintenance Contracts,13/09/2021,Premises Related Expenditure,130705,Communities,Neighbourhoods
95,Access Doors Ltd,Communities,Community Development,Sir Julien Cahn Pavilion,8993,Service Maintenance Contracts,02/09/2021,Premises Related Expenditure,131267,Communities,Neighbourhoods
91.62,Acs Systems Uk Ltd T/A Acs Office Solutions,Finance & Corporate Services,Ict,It Rechargeable Costs,4722,Software,28/07/2021,Supplies & Services,129953,Finance & Corporate Services,Corporate Services
90,Access Doors Ltd,Transformation,Economic Regeneration,Cotgrave Hub/Msc -Shared Entry,1878,Service Maintenance Contracts,02/09/2021,Premises Related Expenditure,131267,Transformation,Economic Growth
90,Access Doors Ltd,Transformation,Property Services,Unit 10 Moorbridge,4788,Service Maintenance Contracts,02/09/2021,Premises Related Expenditure,131267,Transformation,Economic Growth
87.5,Clearwater Technology Ltd,Transformation,Property Services,Castle Donington,1863,Service Maintenance Contracts,13/09/2021,Premises Related Expenditure,130705,Transformation,Economic Growth
75,Blade Runners Commercial Ltd,Transformation,Property Services,New Offices - Cotgrave,4798,Contract Cleaning,12/08/2021,Premises Related Expenditure,130317,Transformation,Economic Growth
,,, Level 5 Cost Centre Name,Level 9 Cost Centre Name,Level 9 Cost Centre Code,Level 9 Account Name,Date Paid, Level 5 Account Name,Transaction Reference,Level 3 Cost Centre Name,Department 
75,Clearwater Technology Ltd,Transformation,Customer Services,Customer Services,4807,Service Maintenance Contracts,13/09/2021,Premises Related Expenditure,130705,Transformation,Corporate Services
75,Clearwater Technology Ltd,Transformation,Property Services,The Point,1886,Service Maintenance Contracts,13/09/2021,Premises Related Expenditure,130705,Transformation,Economic Growth
75,Clearwater Technology Ltd,Transformation,Property Services,Unit 10 Moorbridge,4788,Service Maintenance Contracts,13/09/2021,Premises Related Expenditure,130705,Transformation,Economic Growth
70,Access Doors Ltd,Communities,Community Development,Gamston Community Hall,8992,Service Maintenance Contracts,02/09/2021,Premises Related Expenditure,131267,Communities,Neighbourhoods
45,Blade Runners Commercial Ltd,Communities,Community Development,Gamston Community Hall,8992,Service Maintenance Contracts,12/08/2021,Premises Related Expenditure,130317,Communities,Neighbourhoods
27.68,Daisy Corporate Services Trading Limited,Finance & Corporate Services,Ict,Telephones,4870,Telephone Call Charges,16/07/2021,Supplies & Services,129510,Finance & Corporate Services,Corporate Services
23.65,Clearwater Technology Ltd,Communities,Community Development,Alford Road,8940,Service Maintenance Contracts,13/09/2021,Premises Related Expenditure,130706,Communities,Neighbourhoods
23.65,Clearwater Technology Ltd,Communities,Community Development,Gamston Community Hall,8992,Service Maintenance Contracts,13/09/2021,Premises Related Expenditure,130706,Communities,Neighbourhoods
23.65,Clearwater Technology Ltd,Communities,Community Development,Rushcliffe Country Park,1375,Service Maintenance Contracts,13/09/2021,Premises Related Expenditure,130706,Communities,Neighbourhoods
23.65,Clearwater Technology Ltd,Communities,Community Development,Sir Julien Cahn Pavilion,8993,Service Maintenance Contracts,13/09/2021,Premises Related Expenditure,130706,Communities,Neighbourhoods
23.65,Clearwater Technology Ltd,Communities,Community Development,West Park,8994,Service Maintenance Contracts,13/09/2021,Premises Related Expenditure,130706,Communities,Neighbourhoods
23.65,Clearwater Technology Ltd,Neighbourhoods,Strategic Housing,Hostel Hound Lodge,1111,Service Maintenance Contracts,13/09/2021,Premises Related Expenditure,130706,Neighbourhoods,Public Protection
23.65,Clearwater Technology Ltd,Transformation,Customer Services,Customer Services,4807,Service Maintenance Contracts,13/09/2021,Premises Related Expenditure,130706,Transformation,Corporate Services
23.65,Clearwater Technology Ltd,Transformation,Property Services,Arena Civic Centre,4718,Service Maintenance Contracts,13/09/2021,Premises Related Expenditure,130706,Transformation,Economic Growth
23.65,Clearwater Technology Ltd,Transformation,Property Services,Castle Donington,1863,Service Maintenance Contracts,13/09/2021,Premises Related Expenditure,130706,Transformation,Economic Growth
23.65,Clearwater Technology Ltd,Transformation,Property Services,Unit 10 Moorbridge,4788,Service Maintenance Contracts,13/09/2021,Premises Related Expenditure,130706,Transformation,Economic Growth
-1500,Heat Indian Restaurant,Assets,Current Assets,Covid19 Funding (Drs),6219,Addnl Restrictions Grant,30/07/2021,Addnl Restrictions Grant,130350,Assets,Finance
-2667,Gourmet Coffee Bar & Kitchen Ltd,Assets,Current Assets,Covid19 Funding (Drs),6219,Addnl Restrictions Grant,30/07/2021,Addnl Restrictions Grant,130351,Assets,Finance
